{"text_format":"1","workbook":"xlsx","n_sheets":4,"sheets":["Thème","Ordre","Original","Liste photos"],"not_rendered":{"charts":0,"images":0,"macros":1,"external_links":1,"defined_names":3,"comments":0,"pivot_tables":0},"unopened":[],"bounds":{"document_bytes":16777216,"sheet_cells":100000,"rows_first":2000,"rows_last":500,"rows_between":2000,"halvings":0,"cell_chars":16384,"cell_head_chars":4096},"cells_cut":0,"cells_raw":0,"read":"whole","date_system":"1900"}

{"sheet":"Thème","index":0,"n_rows":36,"n_cols":10,"rows_kept":36,"cut":false,"hidden":false,"merged":[]}
[]
[null,null,"Palmares FDT 2016\nS.M.C"]
[]
[null,null,"Thème","Thème","N° d'ordre","Catégorie","Titre","Auteur","Pays","Code"]
[1,"FIAP","Médailles d'or Thème",{"$f":"COUNTIF($C7,\"*Thème*\")","v":1},1,{"$f":"IF($E5=\"\",\"\",VLOOKUP($E5,'Liste photos'!$A$3:$F$1410,6,FALSE))","v":"Thème"},{"$f":"IF($E5=\"\",\"\",VLOOKUP($E5,'Liste photos'!$A$3:$F$1410,5,FALSE))","v":"Street washerwoman"},{"$f":"IF($E5=\"\",\"\",VLOOKUP($E5,'Liste photos'!$A$3:$F$1410,2,FALSE))","v":"Zhang  Tianming"},{"$f":"IF($E5=\"\",\"\",VLOOKUP($E5,'Liste photos'!$A$3:$F$1410,3,FALSE))","v":"Chine"},{"$f":"IF($E5=\"\",\"\",VLOOKUP($E5,'Liste photos'!$A$3:$F$1410,4,FALSE))","v":"CNZHTI005171_54.JPG"}]
[2,"PSA","Médailles d'or PSA Thème",{"$f":"COUNTIF($C5,\"*Thème*\")","v":1},2,{"$f":"IF($E6=\"\",\"\",VLOOKUP($E6,'Liste photos'!$A$3:$F$1410,6,FALSE))","v":"Thème"},{"$f":"IF($E6=\"\",\"\",VLOOKUP($E6,'Liste photos'!$A$3:$F$1410,5,FALSE))","v":"Texting"},{"$f":"IF($E6=\"\",\"\",VLOOKUP($E6,'Liste photos'!$A$3:$F$1410,2,FALSE))","v":"Hyllseth  Torhild"},{"$f":"IF($E6=\"\",\"\",VLOOKUP($E6,'Liste photos'!$A$3:$F$1410,3,FALSE))","v":"Norvège"},{"$f":"IF($E6=\"\",\"\",VLOOKUP($E6,'Liste photos'!$A$3:$F$1410,4,FALSE))","v":"NOHYTO004760_54.JPG"}]
[3,"FPF","Médaille d'or Thème",{"$f":"COUNTIF($C18,\"*Thème*\")","v":1},3,{"$f":"IF($E7=\"\",\"\",VLOOKUP($E7,'Liste photos'!$A$3:$F$1410,6,FALSE))","v":"Thème"},{"$f":"IF($E7=\"\",\"\",VLOOKUP($E7,'Liste photos'!$A$3:$F$1410,5,FALSE))","v":"Hanging around"},{"$f":"IF($E7=\"\",\"\",VLOOKUP($E7,'Liste photos'!$A$3:$F$1410,2,FALSE))","v":"Selzer  Klaus-Peter"},{"$f":"IF($E7=\"\",\"\",VLOOKUP($E7,'Liste photos'!$A$3:$F$1410,3,FALSE))","v":"Allemagne"},{"$f":"IF($E7=\"\",\"\",VLOOKUP($E7,'Liste photos'!$A$3:$F$1410,4,FALSE))","v":"DESEKL005085_51.JPG"}]
[4,"IUP","Médailles d'or Thème",{"$f":"COUNTIF($C19,\"*Thème*\")","v":1},4,{"$f":"IF($E8=\"\",\"\",VLOOKUP($E8,'Liste photos'!$A$3:$F$1410,6,FALSE))","v":"Thème"},{"$f":"IF($E8=\"\",\"\",VLOOKUP($E8,'Liste photos'!$A$3:$F$1410,5,FALSE))","v":"la quietude"},{"$f":"IF($E8=\"\",\"\",VLOOKUP($E8,'Liste photos'!$A$3:$F$1410,2,FALSE))","v":"Le Mouel  Martine"},{"$f":"IF($E8=\"\",\"\",VLOOKUP($E8,'Liste photos'!$A$3:$F$1410,3,FALSE))","v":"France"},{"$f":"IF($E8=\"\",\"\",VLOOKUP($E8,'Liste photos'!$A$3:$F$1410,4,FALSE))","v":"FRLEMA004827_53.JPG"}]
[5,"PSA","Médailles d'argent PSA Thème",{"$f":"COUNTIF($C20,\"*Thème*\")","v":1},5,{"$f":"IF($E9=\"\",\"\",VLOOKUP($E9,'Liste photos'!$A$3:$F$1410,6,FALSE))","v":"Thème"},{"$f":"IF($E9=\"\",\"\",VLOOKUP($E9,'Liste photos'!$A$3:$F$1410,5,FALSE))","v":"La star"},{"$f":"IF($E9=\"\",\"\",VLOOKUP($E9,'Liste photos'!$A$3:$F$1410,2,FALSE))","v":"Amenta  Armand"},{"$f":"IF($E9=\"\",\"\",VLOOKUP($E9,'Liste photos'!$A$3:$F$1410,3,FALSE))","v":"France"},{"$f":"IF($E9=\"\",\"\",VLOOKUP($E9,'Liste photos'!$A$3:$F$1410,4,FALSE))","v":"FRAMAR004907_53.JPG"}]
[6,"GPU","Médaille d'argent Thème",{"$f":"COUNTIF($C21,\"*Thème*\")","v":1},6,{"$f":"IF($E10=\"\",\"\",VLOOKUP($E10,'Liste photos'!$A$3:$F$1410,6,FALSE))","v":"Thème"},{"$f":"IF($E10=\"\",\"\",VLOOKUP($E10,'Liste photos'!$A$3:$F$1410,5,FALSE))","v":"Musichien"},{"$f":"IF($E10=\"\",\"\",VLOOKUP($E10,'Liste photos'!$A$3:$F$1410,2,FALSE))","v":"Causse  Eric"},{"$f":"IF($E10=\"\",\"\",VLOOKUP($E10,'Liste photos'!$A$3:$F$1410,3,FALSE))","v":"France"},{"$f":"IF($E10=\"\",\"\",VLOOKUP($E10,'Liste photos'!$A$3:$F$1410,4,FALSE))","v":"FRCAER004805_54.JPG"}]
[7,"ISF","Médaille d'argent Thème",{"$f":"COUNTIF($C6,\"*Thème*\")","v":1},7,{"$f":"IF($E11=\"\",\"\",VLOOKUP($E11,'Liste photos'!$A$3:$F$1410,6,FALSE))","v":"Thème"},{"$f":"IF($E11=\"\",\"\",VLOOKUP($E11,'Liste photos'!$A$3:$F$1410,5,FALSE))","v":"Wife calling"},{"$f":"IF($E11=\"\",\"\",VLOOKUP($E11,'Liste photos'!$A$3:$F$1410,2,FALSE))","v":"Albrecht  Urs"},{"$f":"IF($E11=\"\",\"\",VLOOKUP($E11,'Liste photos'!$A$3:$F$1410,3,FALSE))","v":"Suisse"},{"$f":"IF($E11=\"\",\"\",VLOOKUP($E11,'Liste photos'!$A$3:$F$1410,4,FALSE))","v":"CHALUR005041_54.JPG"}]
[8,"RPS","Médaille d'argent Thème",{"$f":"COUNTIF($C9,\"*Thème*\")","v":1},8,{"$f":"IF($E12=\"\",\"\",VLOOKUP($E12,'Liste photos'!$A$3:$F$1410,6,FALSE))","v":"Thème"},{"$f":"IF($E12=\"\",\"\",VLOOKUP($E12,'Liste photos'!$A$3:$F$1410,5,FALSE))","v":"Choco talk"},{"$f":"IF($E12=\"\",\"\",VLOOKUP($E12,'Liste photos'!$A$3:$F$1410,2,FALSE))","v":"Lander  Igor"},{"$f":"IF($E12=\"\",\"\",VLOOKUP($E12,'Liste photos'!$A$3:$F$1410,3,FALSE))","v":"Ukraine"},{"$f":"IF($E12=\"\",\"\",VLOOKUP($E12,'Liste photos'!$A$3:$F$1410,4,FALSE))","v":"UALAIG005026_53.JPG"}]
[9,"IUP","Médailles d'argent Thème",{"$f":"COUNTIF($C14,\"*Thème*\")","v":1},9,{"$f":"IF($E13=\"\",\"\",VLOOKUP($E13,'Liste photos'!$A$3:$F$1410,6,FALSE))","v":"Thème"},{"$f":"IF($E13=\"\",\"\",VLOOKUP($E13,'Liste photos'!$A$3:$F$1410,5,FALSE))","v":"Beijos de Saudades"},{"$f":"IF($E13=\"\",\"\",VLOOKUP($E13,'Liste photos'!$A$3:$F$1410,2,FALSE))","v":"Pires Dias  José Manuel"},{"$f":"IF($E13=\"\",\"\",VLOOKUP($E13,'Liste photos'!$A$3:$F$1410,3,FALSE))","v":"France"},{"$f":"IF($E13=\"\",\"\",VLOOKUP($E13,'Liste photos'!$A$3:$F$1410,4,FALSE))","v":"FRPIJO004798_51.JPG"}]
[10,"PSA","Médailles de bronze PSA Thème",{"$f":"COUNTIF($C22,\"*Thème*\")","v":1},10,{"$f":"IF($E14=\"\",\"\",VLOOKUP($E14,'Liste photos'!$A$3:$F$1410,6,FALSE))","v":"Thème"},{"$f":"IF($E14=\"\",\"\",VLOOKUP($E14,'Liste photos'!$A$3:$F$1410,5,FALSE))","v":"Haircut Shop on the Street"},{"$f":"IF($E14=\"\",\"\",VLOOKUP($E14,'Liste photos'!$A$3:$F$1410,2,FALSE))","v":"Desheng  Xu"},{"$f":"IF($E14=\"\",\"\",VLOOKUP($E14,'Liste photos'!$A$3:$F$1410,3,FALSE))","v":"Chine"},{"$f":"IF($E14=\"\",\"\",VLOOKUP($E14,'Liste photos'!$A$3:$F$1410,4,FALSE))","v":"CNDEXU004887_53.JPG"}]
[11,"IUP","Médailles de bronze Thème",{"$f":"COUNTIF($C10,\"*Thème*\")","v":1},11,{"$f":"IF($E15=\"\",\"\",VLOOKUP($E15,'Liste photos'!$A$3:$F$1410,6,FALSE))","v":"Thème"},{"$f":"IF($E15=\"\",\"\",VLOOKUP($E15,'Liste photos'!$A$3:$F$1410,5,FALSE))","v":"Hurry"},{"$f":"IF($E15=\"\",\"\",VLOOKUP($E15,'Liste photos'!$A$3:$F$1410,2,FALSE))","v":"Xiaolian   Zhang"},{"$f":"IF($E15=\"\",\"\",VLOOKUP($E15,'Liste photos'!$A$3:$F$1410,3,FALSE))","v":"Chine"},{"$f":"IF($E15=\"\",\"\",VLOOKUP($E15,'Liste photos'!$A$3:$F$1410,4,FALSE))","v":"CNXIZH004892_51.JPG"}]
[12,"FDT","Médaille d'or Thème",{"$f":"COUNTIF($C23,\"*Thème*\")","v":1},12,{"$f":"IF($E16=\"\",\"\",VLOOKUP($E16,'Liste photos'!$A$3:$F$1410,6,FALSE))","v":"Thème"},{"$f":"IF($E16=\"\",\"\",VLOOKUP($E16,'Liste photos'!$A$3:$F$1410,5,FALSE))","v":"Sprinkle holy water"},{"$f":"IF($E16=\"\",\"\",VLOOKUP($E16,'Liste photos'!$A$3:$F$1410,2,FALSE))","v":"Wang  Bingcheng"},{"$f":"IF($E16=\"\",\"\",VLOOKUP($E16,'Liste photos'!$A$3:$F$1410,3,FALSE))","v":"Chine"},{"$f":"IF($E16=\"\",\"\",VLOOKUP($E16,'Liste photos'!$A$3:$F$1410,4,FALSE))","v":"CNWABI005177_54.JPG"}]
[13,"SMC","Médaille de la ville Thème",{"$f":"COUNTIF($C11,\"*Thème*\")","v":1},14,{"$f":"IF($E17=\"\",\"\",VLOOKUP($E17,'Liste photos'!$A$3:$F$1410,6,FALSE))","v":"Thème"},{"$f":"IF($E17=\"\",\"\",VLOOKUP($E17,'Liste photos'!$A$3:$F$1410,5,FALSE))","v":"Un chameau dans le trafic"},{"$f":"IF($E17=\"\",\"\",VLOOKUP($E17,'Liste photos'!$A$3:$F$1410,2,FALSE))","v":"Travaillé  Claude"},{"$f":"IF($E17=\"\",\"\",VLOOKUP($E17,'Liste photos'!$A$3:$F$1410,3,FALSE))","v":"France"},{"$f":"IF($E17=\"\",\"\",VLOOKUP($E17,'Liste photos'!$A$3:$F$1410,4,FALSE))","v":"FRTRCL005089_52.JPG"}]
[14,"FIAP","Ruban FIAP Thème",{"$f":"COUNTIF($C27,\"*Thème*\")","v":1},15,{"$f":"IF($E18=\"\",\"\",VLOOKUP($E18,'Liste photos'!$A$3:$F$1410,6,FALSE))","v":"Thème"},{"$f":"IF($E18=\"\",\"\",VLOOKUP($E18,'Liste photos'!$A$3:$F$1410,5,FALSE))","v":"retour a l etable"},{"$f":"IF($E18=\"\",\"\",VLOOKUP($E18,'Liste photos'!$A$3:$F$1410,2,FALSE))","v":"Bailly  Michel"},{"$f":"IF($E18=\"\",\"\",VLOOKUP($E18,'Liste photos'!$A$3:$F$1410,3,FALSE))","v":"France"},{"$f":"IF($E18=\"\",\"\",VLOOKUP($E18,'Liste photos'!$A$3:$F$1410,4,FALSE))","v":"FRBAMI004818_53.JPG"}]
[15,"FIAP","Ruban FIAP Thème",{"$f":"COUNTIF($C28,\"*Thème*\")","v":1},16,{"$f":"IF($E19=\"\",\"\",VLOOKUP($E19,'Liste photos'!$A$3:$F$1410,6,FALSE))","v":"Thème"},{"$f":"IF($E19=\"\",\"\",VLOOKUP($E19,'Liste photos'!$A$3:$F$1410,5,FALSE))","v":"The Walk"},{"$f":"IF($E19=\"\",\"\",VLOOKUP($E19,'Liste photos'!$A$3:$F$1410,2,FALSE))","v":"Hofmann  Klaus"},{"$f":"IF($E19=\"\",\"\",VLOOKUP($E19,'Liste photos'!$A$3:$F$1410,3,FALSE))","v":"Allemagne"},{"$f":"IF($E19=\"\",\"\",VLOOKUP($E19,'Liste photos'!$A$3:$F$1410,4,FALSE))","v":"DEHOKL005038_53.JPG"}]
[16,"FIAP","Ruban FIAP Thème",{"$f":"COUNTIF($C12,\"*Thème*\")","v":1},17,{"$f":"IF($E20=\"\",\"\",VLOOKUP($E20,'Liste photos'!$A$3:$F$1410,6,FALSE))","v":"Thème"},{"$f":"IF($E20=\"\",\"\",VLOOKUP($E20,'Liste photos'!$A$3:$F$1410,5,FALSE))","v":"Le joueur d'orgue"},{"$f":"IF($E20=\"\",\"\",VLOOKUP($E20,'Liste photos'!$A$3:$F$1410,2,FALSE))","v":"Frances  Georges"},{"$f":"IF($E20=\"\",\"\",VLOOKUP($E20,'Liste photos'!$A$3:$F$1410,3,FALSE))","v":"France"},{"$f":"IF($E20=\"\",\"\",VLOOKUP($E20,'Liste photos'!$A$3:$F$1410,4,FALSE))","v":"FRFRGE004906_52.JPG"}]
[17,"FIAP","Ruban FIAP Thème",{"$f":"COUNTIF($C8,\"*Thème*\")","v":1},18,{"$f":"IF($E21=\"\",\"\",VLOOKUP($E21,'Liste photos'!$A$3:$F$1410,6,FALSE))","v":"Thème"},{"$f":"IF($E21=\"\",\"\",VLOOKUP($E21,'Liste photos'!$A$3:$F$1410,5,FALSE))","v":"Certainly steps"},{"$f":"IF($E21=\"\",\"\",VLOOKUP($E21,'Liste photos'!$A$3:$F$1410,2,FALSE))","v":"Charalambous  Constantinos"},{"$f":"IF($E21=\"\",\"\",VLOOKUP($E21,'Liste photos'!$A$3:$F$1410,3,FALSE))","v":"Chypre"},{"$f":"IF($E21=\"\",\"\",VLOOKUP($E21,'Liste photos'!$A$3:$F$1410,4,FALSE))","v":"CYCHCO005285_51.JPG"}]
[18,"PSA","Ruban PSA Thème",{"$f":"COUNTIF($C13,\"*Thème*\")","v":1},19,{"$f":"IF($E22=\"\",\"\",VLOOKUP($E22,'Liste photos'!$A$3:$F$1410,6,FALSE))","v":"Thème"},{"$f":"IF($E22=\"\",\"\",VLOOKUP($E22,'Liste photos'!$A$3:$F$1410,5,FALSE))","v":"Those left behind"},{"$f":"IF($E22=\"\",\"\",VLOOKUP($E22,'Liste photos'!$A$3:$F$1410,2,FALSE))","v":"Yang  Fu"},{"$f":"IF($E22=\"\",\"\",VLOOKUP($E22,'Liste photos'!$A$3:$F$1410,3,FALSE))","v":"Chine"},{"$f":"IF($E22=\"\",\"\",VLOOKUP($E22,'Liste photos'!$A$3:$F$1410,4,FALSE))","v":"CNYAFU005169_54.JPG"}]
[19,"GPU","Ruban Thème",{"$f":"COUNTIF($C15,\"*Thème*\")","v":1},20,{"$f":"IF($E23=\"\",\"\",VLOOKUP($E23,'Liste photos'!$A$3:$F$1410,6,FALSE))","v":"Thème"},{"$f":"IF($E23=\"\",\"\",VLOOKUP($E23,'Liste photos'!$A$3:$F$1410,5,FALSE))","v":"Zombie day"},{"$f":"IF($E23=\"\",\"\",VLOOKUP($E23,'Liste photos'!$A$3:$F$1410,2,FALSE))","v":"Viguier  Mireille"},{"$f":"IF($E23=\"\",\"\",VLOOKUP($E23,'Liste photos'!$A$3:$F$1410,3,FALSE))","v":"France"},{"$f":"IF($E23=\"\",\"\",VLOOKUP($E23,'Liste photos'!$A$3:$F$1410,4,FALSE))","v":"FRVIMI004911_54.JPG"}]
[20,"IUP","Ruban IUP Thème",{"$f":"COUNTIF($C24,\"*Thème*\")","v":1},21,{"$f":"IF($E24=\"\",\"\",VLOOKUP($E24,'Liste photos'!$A$3:$F$1410,6,FALSE))","v":"Thème"},{"$f":"IF($E24=\"\",\"\",VLOOKUP($E24,'Liste photos'!$A$3:$F$1410,5,FALSE))","v":"After the war"},{"$f":"IF($E24=\"\",\"\",VLOOKUP($E24,'Liste photos'!$A$3:$F$1410,2,FALSE))","v":"Tevfik  Ileri"},{"$f":"IF($E24=\"\",\"\",VLOOKUP($E24,'Liste photos'!$A$3:$F$1410,3,FALSE))","v":"Chypre"},{"$f":"IF($E24=\"\",\"\",VLOOKUP($E24,'Liste photos'!$A$3:$F$1410,4,FALSE))","v":"CYTEIL002747_51.JPG"}]
[21,"IUP","Ruban IUP Thème",{"$f":"COUNTIF($C25,\"*Thème*\")","v":1},22,{"$f":"IF($E25=\"\",\"\",VLOOKUP($E25,'Liste photos'!$A$3:$F$1410,6,FALSE))","v":"Thème"},{"$f":"IF($E25=\"\",\"\",VLOOKUP($E25,'Liste photos'!$A$3:$F$1410,5,FALSE))","v":"Si grand"},{"$f":"IF($E25=\"\",\"\",VLOOKUP($E25,'Liste photos'!$A$3:$F$1410,2,FALSE))","v":"Flornoy  Caroline"},{"$f":"IF($E25=\"\",\"\",VLOOKUP($E25,'Liste photos'!$A$3:$F$1410,3,FALSE))","v":"France"},{"$f":"IF($E25=\"\",\"\",VLOOKUP($E25,'Liste photos'!$A$3:$F$1410,4,FALSE))","v":"FRFLCA005009_54.JPG"}]
[24,"IUP","Ruban IUP Thème",{"$f":"COUNTIF($C29,\"*Thème*\")","v":1},23,{"$f":"IF($E26=\"\",\"\",VLOOKUP($E26,'Liste photos'!$A$3:$F$1410,6,FALSE))","v":"Thème"},{"$f":"IF($E26=\"\",\"\",VLOOKUP($E26,'Liste photos'!$A$3:$F$1410,5,FALSE))","v":"The Lovers"},{"$f":"IF($E26=\"\",\"\",VLOOKUP($E26,'Liste photos'!$A$3:$F$1410,2,FALSE))","v":"Lechanski  M."},{"$f":"IF($E26=\"\",\"\",VLOOKUP($E26,'Liste photos'!$A$3:$F$1410,3,FALSE))","v":"Royaume-Uni"},{"$f":"IF($E26=\"\",\"\",VLOOKUP($E26,'Liste photos'!$A$3:$F$1410,4,FALSE))","v":"GBLEM.004934_53.JPG"}]
[22,"ISF","Diplôme Thème",{"$f":"COUNTIF($C26,\"*Thème*\")","v":1},24,{"$f":"IF($E27=\"\",\"\",VLOOKUP($E27,'Liste photos'!$A$3:$F$1410,6,FALSE))","v":"Thème"},{"$f":"IF($E27=\"\",\"\",VLOOKUP($E27,'Liste photos'!$A$3:$F$1410,5,FALSE))","v":"Entrance to village"},{"$f":"IF($E27=\"\",\"\",VLOOKUP($E27,'Liste photos'!$A$3:$F$1410,2,FALSE))","v":"Wang  Shibo"},{"$f":"IF($E27=\"\",\"\",VLOOKUP($E27,'Liste photos'!$A$3:$F$1410,3,FALSE))","v":"Chine"},{"$f":"IF($E27=\"\",\"\",VLOOKUP($E27,'Liste photos'!$A$3:$F$1410,4,FALSE))","v":"CNWASH005167_51.JPG"}]
[23,"ISF","Diplôme Thème",{"$f":"COUNTIF($C16,\"*Thème*\")","v":1},25,{"$f":"IF($E28=\"\",\"\",VLOOKUP($E28,'Liste photos'!$A$3:$F$1410,6,FALSE))","v":"Thème"},{"$f":"IF($E28=\"\",\"\",VLOOKUP($E28,'Liste photos'!$A$3:$F$1410,5,FALSE))","v":"Gay pride"},{"$f":"IF($E28=\"\",\"\",VLOOKUP($E28,'Liste photos'!$A$3:$F$1410,2,FALSE))","v":"Dallavalle  Jean"},{"$f":"IF($E28=\"\",\"\",VLOOKUP($E28,'Liste photos'!$A$3:$F$1410,3,FALSE))","v":"France"},{"$f":"IF($E28=\"\",\"\",VLOOKUP($E28,'Liste photos'!$A$3:$F$1410,4,FALSE))","v":"FRDAJE004793_52.JPG"}]
[25,"FDT","Diplôme Thème",{"$f":"COUNTIF($C17,\"*Thème*\")","v":1},26,{"$f":"IF($E29=\"\",\"\",VLOOKUP($E29,'Liste photos'!$A$3:$F$1410,6,FALSE))","v":"Thème"},{"$f":"IF($E29=\"\",\"\",VLOOKUP($E29,'Liste photos'!$A$3:$F$1410,5,FALSE))","v":"A votre bon coeur"},{"$f":"IF($E29=\"\",\"\",VLOOKUP($E29,'Liste photos'!$A$3:$F$1410,2,FALSE))","v":"Raoulas  Daniel"},{"$f":"IF($E29=\"\",\"\",VLOOKUP($E29,'Liste photos'!$A$3:$F$1410,3,FALSE))","v":"France"},{"$f":"IF($E29=\"\",\"\",VLOOKUP($E29,'Liste photos'!$A$3:$F$1410,4,FALSE))","v":"FRRADA003731_54.JPG"}]
[null,null,null,{"$f":"SUM(D5:D29)","v":25}]
[]
[null,null,null,null,"Il suffit de rentrer un N°, compris entre 1 et 1408, dans la colonne \"E\" pour renseigner les autres colonnes d'une même ligne,"]
[]
[null,null,null,null,"On ne peut attribuer qu'une seule récompense à un même auteur dans une catgorie."]
[]
[null,null,null,null,"Les doublons sont signalés en rouge."]

{"sheet":"Ordre","index":1,"n_rows":27,"n_cols":13,"rows_kept":27,"cut":false,"hidden":true,"merged":[[2,2,10,2],[11,2,17,2],[19,2,20,2],[21,2,22,2],[23,2,24,2]]}
[]
[null,null,null,"Couleur",null,"N° d'ordre","Titre","Nom","Prénom","Code"]
[null,null,"FIAP","Médaille d'or Couleur",null,637,"Horseracing","Plovie","Bjorn","BEPLBJ000095_11"]
[null,null,null,"Médaille d'argent Couleur",null,2185,"Sunset Racing","Man-kui, Wisely","Ng","HKMANG000652_11"]
[null,null,null,"Médaille de bronze Couleur",null,716,"Portuguese Love","Joao","Taborda","PTJOTA000547_12",null,"FIAP","FPF"]
[null,null,null,"Ruban FIAP Couleur",null,1349,"Sidecar duo","Plovie","Bjorn","BEPLBJ000095_13",null,"PSA","FIAP"]
[null,null,null,"Ruban FIAP Couleur",null,1983,"The Grinder","Marriott","Steve","GBMAST000459_13",null,"FPF","PSA"]
[null,null,null,"Ruban FIAP Couleur",null,328,"Happy dog","Kyndt","Daniel","BEKYDA000124_12",null,"GPU","GPU"]
[null,null,null,"Ruban FIAP Couleur",null,1361,"Red Shawl","McKelvey","Ross","GBMCRO000775_13",null,"ISF","ISF"]
[null,null,null,"Ruban FIAP Couleur",null,157,"Vivienne - Three Pole Positions","Finighan","Brennan","AUFIBR000215_12",null,"RPS","RPS"]
[null,null,null,"Ruban FIAP Couleur",null,1395,"Walking on water","Papp","Elek","HUPAEL000620_12",null,"IUP","IUP"]
[null,null,"PSA","Médaille d 'or PSA Couleur",null,1481,"All Honour To Our Lord","Patel","Dilip","USPADI000739_13",null,"FDT","FDT"]
[null,null,null,"Médaille d 'argent PSA Couleur",null,2168,"So beauttiful","Cowles","Susan","USCOSU000769_12",null,null,"DIVERS"]
[null,null,null,"Médaille de bronze Couleur",null,1892,"Safari with a difference","Pichler","Thomas","ATPITH000846_12"]
[null,null,null,"Ruban PSA Couleur",null,897,"The Body Snatchers","Grafton","Jacqui Jay","GBGRJA000694_11"]
[null,null,null,"Ruban PSA Couleur",null,283,"Castellers-1","Remola Pages","Lluis","ESRELL000804_13"]
[null,null,null,"Ruban PSA Couleur",null,884,"Battling with calf","Tam","Kam Chiu","CATAKA000283_12"]
[null,null,null,"Ruban PSA Couleur",null,1211,"Waternymph 4","Diana","Carlo","BEDICA000084_14"]
[null,null,"FPF","Médaille d'argent Couleur",null,1349,"Sidecar duo","Plovie","Bjorn","BEPLBJ000095_13"]
[null,null,"UPI","Médaille d'or Couleur",null,1020,"Natalie and Badger","Keene","Paul","GBKEPA000423_11"]
[null,null,null,"Ruban Couleur",null,2205,"Early sunny on the river","Duc Toai","Le","VNDULE000678_12"]
[null,null,"ISF","Diplôme Couleur",null,34,"MorningGlow","Yap","Anthony PW","AUYAAN000532_12"]
[null,null,null,"Diplôme Couleur",null,1480,"The Transience","Buenger","Harry","DEBUHA000049_14"]
[null,null,"FDT","Médaille d'or Couleur",null,2511,"Pierre précieuse","Dubs","Marcel","FRDUMA000411_12"]
[null,null,null,"Diplôme Couleur",null,48,"Dila 4","Cemil","Guven","TRCEGU000869_11"]
[null,null,"Spécif.","Médaille de la ville",null,1774,"Gregory","Papp","Elek","HUPAEL000620_13"]
[null,null,"C.C","Juge 3",null,1409,"Red Bag","Buenger","Harry","DEBUHA000049_12"]

{"sheet":"Original","index":2,"n_rows":112,"n_cols":10,"rows_kept":112,"cut":false,"hidden":true,"merged":[[107,1,110,1],[5,1,8,1],[9,1,33,1],[34,1,38,1],[39,1,42,1],[43,1,46,1],[47,1,50,1],[51,1,60,1],[61,1,71,1],[72,1,74,1],[75,1,98,1],[99,1,106,1]]}
[]
[]
[null,null,"Palmares FDT 2016\nS.M.C"]
[]
[null,null,"Couleur",null,null,"Couleur","Nature","N&B","Thème"]
[1,"FPF","Meilleur auteur Français",null,null,{"$f":"COUNTIF($C$6,\"*Couleur*\")","v":0},{"$f":"COUNTIF($C6,\"*Nature*\")","v":0},{"$f":"COUNTIF($C6,\"*N&B*\")","v":0},{"$f":"COUNTIF($C6,\"*Thème*\")","v":0}]
[2,null,"Médaille d'or Thème",null,null,{"$f":"COUNTIF(C7,\"*Couleur*\")","v":0},{"$f":"COUNTIF($C7,\"*Nature*\")","v":0},{"$f":"COUNTIF($C7,\"*N&B*\")","v":0},{"$f":"COUNTIF($C7,\"*Thème*\")","v":1}]
[3,null,"Médaille d'argent Couleur",null,null,{"$f":"COUNTIF(C8,\"*Couleur*\")","v":1},0,0,0]
[4,null,"Médaille de bronze N&B",null,null,{"$f":"COUNTIF(C9,\"*Couleur*\")","v":0},0,1,0]
[5,"FIAP","Meilleur auteur du Salon",null,null,0,0,0,0]
[6,null,"Médaille d'or Couleur",null,null,1,0,0,0]
[7,null,"Médaile d'or Nature",null,null,0,1,0,0]
[8,null,"Médaille d'or N&B",null,null,0,0,1,0]
[9,null,"Médailles d'or Thème",null,null,0,0,0,1]
[10,null,"Médaille d'argent N&B",null,null,0,0,1,0]
[11,null,"Médaile d'argent Nature",null,null,0,1,0,0]
[12,null,"Médaille de bronze N&B",null,null,0,0,1,0]
[13,null,"Médaile de bronze Nature",null,null,0,1,0,0]
[14,null,"Ruban FIAP Couleur",null,null,1,0,0,0]
[15,null,"Ruban FIAP Couleur",null,null,1,0,0,0]
[16,null,"Ruban FIAP Couleur",null,null,1,0,0,0]
[17,null,"Ruban FIAP Couleur",null,null,1,0,0,0]
[18,null,"Ruban FIAP Nature",null,null,0,1,0,0]
[19,null,"Ruban FIAP Nature",null,null,0,1,0,0]
[20,null,"Ruban FIAP Nature",null,null,0,1,0,0]
[21,null,"Ruban FIAP Nature",null,null,0,1,0,0]
[22,null,"Ruban FIAP N&B",null,null,0,0,1,0]
[23,null,"Ruban FIAP N&B",null,null,0,0,1,0]
[24,null,"Ruban FIAP N&B",null,null,0,0,1,0]
[25,null,"Ruban FIAP N&B",null,null,0,0,1,0]
[26,null,"Ruban FIAP Thème",null,null,0,0,0,1]
[27,null,"Ruban FIAP Thème",null,null,0,0,0,1]
[28,null,"Ruban FIAP Thème",null,null,0,0,0,1]
[29,null,"Ruban FIAP Thème",null,null,0,0,0,1]
[30,"PSA\nCouleur","Médaille d 'or PSA Couleur",null,null,1,0,0,0]
[31,null,"Médaille d 'argent PSA Couleur",null,null,1,0,0,0]
[32,null,"Médaille de bronze Couleur",null,null,1,0,0,0]
[33,null,"Ruban PSA Couleur",null,null,1,0,0,0]
[34,null,"Ruban PSA Couleur",null,null,1,0,0,0]
[35,"PSA\nNature","Médailles d'or PSA Nature",null,null,0,1,0,0]
[36,null,"Médailles d'argent PSA Nature",null,null,0,1,0,0]
[37,null,"Médailles de bronze PSA Nature",null,null,0,1,0,0]
[38,null,"Ruban PSA Nature",null,null,0,1,0,0]
[39,"PSA\nN&B","Médailles d'or PSA N&B",null,null,0,0,1,0]
[40,null,"Médailles d'argent PSA N&B",null,null,0,0,1,0]
[41,null,"Médailles de bronze PSA N&B",null,null,0,0,1,0]
[42,null,"Ruban PSA N&B",null,null,0,0,1,0]
[43,"PSA\nThème","Médailles d'or PSA Thème",null,null,0,0,0,1]
[44,null,"Médailles d'argent PSA Thème",null,null,0,0,0,1]
[45,null,"Médailles de bronze PSA Thème",null,null,0,0,0,1]
[46,null,"Ruban PSA Thème",null,null,0,0,0,1]
[47,"GPU","Médaille d'or N&B",null,null,0,0,1,0]
[48,null,"Médaille d'argent Thème",null,null,0,0,0,1]
[49,null,"Médaille de Bronze Couleur",null,null,1,0,0,0]
[50,null,"Ruban Couleur",null,null,1,0,0,0]
[51,null,"Ruban Couleur",null,null,1,0,0,0]
[52,null,"Ruban Nature",null,null,0,1,0,0]
[53,null,"Ruban Nature",null,null,0,1,0,0]
[54,null,"Ruban N&B",null,null,0,0,1,0]
[55,null,"Ruban N&B",null,null,0,0,1,0]
[56,null,"Ruban Thème",null,null,0,0,0,1]
[57,"ISF","Médaille d'or N&B",null,null,0,0,1,0]
[58,null,"Médaille d'argent Thème",null,null,0,0,0,1]
[59,null,"Médaille de Bronze Couleur",null,null,1,0,0,0]
[60,null,"Diplôme Couleur",null,null,1,0,0,0]
[61,null,"Diplôme Couleur",null,null,1,0,0,0]
[62,null,"Diplôme Nature",null,null,0,1,0,0]
[63,null,"Diplôme Nature",null,null,0,1,0,0]
[64,null,"Diplôme N&B",null,null,0,0,1,0]
[65,null,"Diplôme N&B",null,null,0,0,1,0]
[66,null,"Diplôme Thème",null,null,0,{"$f":"COUNTIF($C71,\"*Nature*\")","v":0},{"$f":"COUNTIF($C71,\"*N&B*\")","v":0},{"$f":"COUNTIF($C71,\"*Thème*\")","v":1}]
[67,null,"Diplôme Thème",null,null,0,0,0,1]
[68,"RPS","Médaille d'or N&B",null,null,{"$f":"COUNTIF(C73,\"*Couleur*\")","v":0},0,1,0]
[69,null,"Médaille d'argent Thème",null,null,0,0,0,1]
[70,null,"Médaille de Bronze Couleur",null,null,1,0,0,0]
[71,"IUP","Médaille d'or Couleur",null,null,1,0,0,0]
[72,null,"Médaille d'or Nature",null,null,0,1,0,0]
[73,null,"Médaille d'or N&B",null,null,0,0,1,0]
[74,null,"Médailles d'or Thème",null,null,0,0,0,1]
[75,null,"Médaille d'argent Couleur",null,null,1,0,0,0]
[76,null,"Médaille d'argent Nature",null,null,0,1,0,0]
[77,null,"Médaille d'argent N&B",null,null,0,0,1,0]
[78,null,"Médailles d'argent Thème",null,null,0,0,0,1]
[79,null,"Médaille de bronze Couleur",null,null,1,0,0,0]
[80,null,"Médaille de bronze Nature",null,null,0,1,0,0]
[81,null,"Médaille de bronze N&B",null,null,0,0,1,0]
[82,null,"Médailles de bronze Thème",null,null,0,0,0,1]
[83,null,"Ruban IUP Couleur",null,null,1,0,0,0]
[84,null,"Ruban IUP Couleur",null,null,1,0,0,0]
[85,null,"Ruban IUP Couleur",null,null,1,0,0,0]
[86,null,"Ruban IUP Nature",null,null,0,1,0,0]
[87,null,"Ruban IUP Nature",null,null,0,1,0,0]
[88,null,"Ruban IUP Nature",null,null,0,1,0,0]
[89,null,"Ruban IUP N&B",null,null,0,0,1,0]
[90,null,"Ruban IUP N&B",null,null,0,0,1,0]
[91,null,"Ruban IUP N&B",null,null,0,0,1,0]
[92,null,"Ruban IUP Thème",null,null,0,0,0,1]
[93,null,"Ruban IUP Thème",null,null,0,0,0,1]
[94,null,"Ruban IUP Thème",null,null,0,0,0,1]
[95,"FDT","Médaille d'or Couleur",null,null,1,0,0,0]
[96,null,"Médaille d'or N&B",null,null,0,0,1,0]
[97,null,"Médaille d'or Nature",null,null,0,1,0,0]
[98,null,"Médaille d'or Thème",null,null,0,0,0,1]
[99,null,"Diplôme Couleur",null,null,1,0,0,0]
[100,null,"Diplôme N&B",null,null,0,0,1,0]
[101,null,"Diplôme Nature",null,null,0,1,0,0]
[102,null,"Diplôme Thème",null,null,0,0,0,1]
[103,"Spécifique",{"$f":"IF([1]SMC!$C116=\"\",\"\",[1]SMC!$C116)","v":"Médaille de la ville"},null,null,0,0,0,0]
[104,null,{"$f":"IF([1]SMC!$C117=\"\",\"\",[1]SMC!$C117)","v":"Médaille de la ville"},null,null,0,0,0,0]
[105,null,{"$f":"IF([1]SMC!$C118=\"\",\"\",[1]SMC!$C118)","v":"Médaille de la ville"},null,null,0,0,0,0]
[106,null,{"$f":"IF([1]SMC!$C119=\"\",\"\",[1]SMC!$C119)","v":"Médaille de la ville"},null,null,0,0,0,0]
[null,null,null,null,null,{"$f":"SUM(F6:F111)","v":26},{"$f":"SUM(G6:G111)","v":23},27,24,{"$f":"SUM(F112:I112)","v":100}]

{"sheet":"Liste photos","index":3,"n_rows":1410,"n_cols":6,"rows_kept":1410,"cut":false,"hidden":false,"merged":[[0,0,0,5]]}
["Thème"]
["N° Ordre","Auteur","Pays","Nom","Titre","Categorie"]
[1,"Zhang  Tianming","Chine","CNZHTI005171_54.JPG","Street washerwoman","Thème"]
[2,"Hyllseth  Torhild","Norvège","NOHYTO004760_54.JPG","Texting","Thème"]
[3,"Selzer  Klaus-Peter","Allemagne","DESEKL005085_51.JPG","Hanging around","Thème"]
[4,"Le Mouel  Martine","France","FRLEMA004827_53.JPG","la quietude","Thème"]
[5,"Amenta  Armand","France","FRAMAR004907_53.JPG","La star","Thème"]
[6,"Causse  Eric","France","FRCAER004805_54.JPG","Musichien","Thème"]
[7,"Albrecht  Urs","Suisse","CHALUR005041_54.JPG","Wife calling","Thème"]
[8,"Lander  Igor","Ukraine","UALAIG005026_53.JPG","Choco talk","Thème"]
[9,"Pires Dias  José Manuel","France","FRPIJO004798_51.JPG","Beijos de Saudades","Thème"]
[10,"Desheng  Xu","Chine","CNDEXU004887_53.JPG","Haircut Shop on the Street","Thème"]
[11,"Xiaolian   Zhang","Chine","CNXIZH004892_51.JPG","Hurry","Thème"]
[12,"Wang  Bingcheng","Chine","CNWABI005177_54.JPG","Sprinkle holy water","Thème"]
[13,"Bailly  Michel","France","FRBAMI004818_52.JPG","entre les tags","Thème"]
[14,"Travaillé  Claude","France","FRTRCL005089_52.JPG","Un chameau dans le trafic","Thème"]
[15,"Bailly  Michel","France","FRBAMI004818_53.JPG","retour a l etable","Thème"]
[16,"Hofmann  Klaus","Allemagne","DEHOKL005038_53.JPG","The Walk","Thème"]
[17,"Frances  Georges","France","FRFRGE004906_52.JPG","Le joueur d'orgue","Thème"]
[18,"Charalambous  Constantinos","Chypre","CYCHCO005285_51.JPG","Certainly steps","Thème"]
[19,"Yang  Fu","Chine","CNYAFU005169_54.JPG","Those left behind","Thème"]
[20,"Viguier  Mireille","France","FRVIMI004911_54.JPG","Zombie day","Thème"]
[21,"Tevfik  Ileri","Chypre","CYTEIL002747_51.JPG","After the war","Thème"]
[22,"Flornoy  Caroline","France","FRFLCA005009_54.JPG","Si grand","Thème"]
[23,"Lechanski  M.","Royaume-Uni","GBLEM.004934_53.JPG","The Lovers","Thème"]
[24,"Wang  Shibo","Chine","CNWASH005167_51.JPG","Entrance to village","Thème"]
[25,"Dallavalle  Jean","France","FRDAJE004793_52.JPG","Gay pride","Thème"]
[26,"Raoulas  Daniel","France","FRRADA003731_54.JPG","A votre bon coeur","Thème"]
[27,"Feehan  Sean","Irlande","IEFESE005356_52.JPG","Illumination","Thème"]
[28,"Lei  Ming","Chine","CNLEMI005161_53.JPG","Rickshaw boy","Thème"]
[29,"Verelst  Greta","Belgique","BEVEGR004945_54.JPG","Le dernier café","Thème"]
[30,"Pauly  Jean","France","FRPAJE004765_51.JPG","Morgane Chaussure","Thème"]
[31,"Yang  Liming","Chine","CNYALI005217_53.JPG","Street culture","Thème"]
[32,"Lindqvist  Leena-Maija","Finlande","FILILE005275_54.JPG","Water street of Venice 11","Thème"]
[33,"Bacle  Jean Claude","France","FRBAJE004750_52.JPG","Service d ordre","Thème"]
[34,"Mead  Barry","Royaume-Uni","GBMEBA005056_52.JPG","GROTESQUE","Thème"]
[35,"Pauly  Jean","France","FRPAJE004765_54.JPG","Nettoyage","Thème"]
[36,"O'Hagan  David J.","Irlande","IEO'DA005273_52.JPG","Calypso Morning, Dublin","Thème"]
[37,"Feehan  Sean","Irlande","IEFESE005356_53.JPG","Morning Run","Thème"]
[38,"Cividin  Dino","Belgique","BECIDI004752_51.JPG","Collés, serrés !","Thème"]
[39,"Philippon  André","France","FRPHAN005052_52.JPG","memoire","Thème"]
[40,"Herbillon  Christian","Belgique","BEHECH005112_52.JPG","les vieux pavés","Thème"]
[41,"Strand  Karl","Australie","AUSTKA005367_51.JPG","In The Light","Thème"]
[42,"Gilliot  Michel","Belgique","BEGIMI004774_54.JPG","Rue tunisienne","Thème"]
[43,"Daley  Gregory","Etats Unis","USDAGR005032_52.JPG","City Fountain Evening","Thème"]
[44,"Zhang  Zhiwu","Chine","CNZHZH005188_54.JPG","Umbrella","Thème"]
[45,"Miao  Yong","Chine","CNMIYO005201_53.JPG","Grandpa and grandson in muslim","Thème"]
[46,"Zeng  Wei","Chine","CNZEWE005183_52.JPG","Fantasia","Thème"]
[47,"Adijuwono  Slamet","Indonésie","IDADSL005152_53.JPG","ethiopia 52","Thème"]
[48,"De  Granville  Jean-Jacques","Guyane Française","GFDEJE004780_54.JPG","Vraies et fausses cheminées","Thème"]
[49,"Pires Dias  José Manuel","France","FRPIJO004798_52.JPG","les 3 teillebouts","Thème"]
[50,"Wang  Shibo","Chine","CNWASH005167_53.JPG","Return from the market","Thème"]
[51,"Venna  Yrjö","Finlande","FIVEYR005124_53.JPG","Lovers in Park","Thème"]
[52,"Kastner  Josef","Autriche","ATKAJO005075_52.JPG","Sadhu und die Kuh","Thème"]
[53,"Rinaldy  Rafly","Indonésie","IDRIRA004925_54.JPG","Train Worker","Thème"]
[54,"Peer  Albert","Autriche","ATPEAL004957_53.JPG","pretty Woman","Thème"]
[55,"Fry  Martin","Royaume-Uni","GBFRMA005234_51.JPG","The Floral Dance","Thème"]
[56,"Larsen  Peter Helmut","Danemark","DKLAPE005351_51.JPG","Stairs in Paris","Thème"]
[57,"Raoulas  Daniel","France","FRRADA003731_51.JPG","Dans la bonne direction","Thème"]
[58,"Cheuk  Shu","Etats Unis","USCHSH004994_54.JPG","Tram Stop","Thème"]
[59,"Bertocci  Vinicio","France","FRBEVI004803_51.JPG","Rues de Spaccanapoli 1","Thème"]
[60,"Glandon  Laurent","France","FRGLLA004809_52.JPG","Montmartre 57904","Thème"]
[61,"Lander  Igor","Ukraine","UALAIG005026_54.JPG","Walker","Thème"]
[62,"Rousseau  Jean-René","France","FRROJE005059_54.JPG","cendrillon","Thème"]
[63,"Simon  Claude","Belgique","BESICL004763_51.JPG","Brasserie","Thème"]
[64,"Becker  Werner","Allemagne","DEBEWE005339_51.JPG","On The Escalator","Thème"]
[65,"Danne  Johansen","Danemark","DKDAJO005231_52.JPG","Life Companions","Thème"]
[66,"Stokie  Michelle","Australie","AUSTMI002739_53.JPG","On Three Fire","Thème"]
[67,"Jourdain  Roger","France","FRJORO004901_54.JPG","Wedding Of Bikers","Thème"]
[68,"Ford  Angela","Royaume-Uni","GBFOAN005228_53.JPG","Urgent Laundry","Thème"]
[69,"Ford  Roger","Royaume-Uni","GBFORO005236_51.JPG","Call from the Shadows","Thème"]
[70,"Huynh   Chuy Chay","Belgique","BEHUCH004931_53.JPG","Innocent","Thème"]
[71,"Amenta  Armand","France","FRAMAR004907_51.JPG","A fond la caisse","Thème"]
[72,"Hans  Florence","France","FRHAFL004851_53.JPG","Underground","Thème"]
[73,"Bushe  Catherine","Irlande","IEBUCA005362_54.JPG","Long shadows","Thème"]
[74,"Magot  Laurent","France","FRMALA005127_54.JPG","Place du Trocadero","Thème"]
[75,"Barbier  Gerard","France","FRBAGE004790_54.JPG","Tattoo","Thème"]
[76,"Jinyan  Yang","Chine","CNJIYA004888_52.JPG","Custom and Grand Occasion","Thème"]
[77,"Coumbias  John","Afrique du Sud","ZACOJO004744_54.JPG","the merchant","Thème"]
[78,"Tam  Joseph","Australie","AUTAJO004800_52.JPG","Blowing in the Wind","Thème"]
[79,"Flornoy  Caroline","France","FRFLCA005009_52.JPG","Le rire de l'enfant","Thème"]
[80,"Lambropoulou  Eva","Grèce","GRLAEV004910_54.JPG","WALKING IN ATHENS","Thème"]
[81,"Strand  Karl","Australie","AUSTKA005367_54.JPG","The Tunnel","Thème"]
[82,"Bin  Li","Chine","CNBILI004874_53.JPG","Misty Rain","Thème"]
[83,"Hans  Florence","France","FRHAFL004851_54.JPG","Là-haut","Thème"]
[84,"Zhou  Shengli","Chine","CNZHSH005173_51.JPG","Helpessness","Thème"]
[85,"Stokie  Michelle","Australie","AUSTMI002739_54.JPG","One more hill","Thème"]
[86,"Danne  Johansen","Danemark","DKDAJO005231_54.JPG","Walking alone","Thème"]
[87,"Valkama  Kaija","Finlande","FIVAKA005342_51.JPG","Bad spirit away","Thème"]
[88,"Yushan  Li","Chine","CNYULI004876_51.JPG","Go back from Fair","Thème"]
[89,"Ma  Xiaopin","Chine","CNMAXI005164_52.JPG","Happy tour","Thème"]
[90,"Ermiao  Su","Chine","CNERSU004883_54.JPG","The Old Man under The Monument","Thème"]
[91,"Muñoz  Javier","Espagne","ESMUJA005286_51.JPG","The sun guides us","Thème"]
[92,"Boutolleau   Monique","France","FRBOMO005105_51.JPG","La passante","Thème"]
[93,"Barthélémy  Joëlle","France","FRBAJO004856_53.JPG","Ruelle humide","Thème"]
[94,"Cambon  Michel","France","FRCAMI005221_53.JPG","Main dans la main","Thème"]
[95,"Chan  H.W.","Hong Kong","HKCHH.005036_52.JPG","A pair of sweetheart","Thème"]
[96,"Adijuwono  Slamet","Indonésie","IDADSL005152_52.JPG","ethiopia 43","Thème"]
[97,"Xu  Ping","Chine","CNXUPI005179_53.JPG","Dyer","Thème"]
[98,"Narsiskus  Tedy","Indonésie","IDNATE004936_51.JPG","between","Thème"]
[99,"Chennubhotla  Yashodhar","Inde","INCHYA004816_54.JPG","the guide","Thème"]
[100,"Tam  Joseph","Australie","AUTAJO004800_51.JPG","Rushing Wagon","Thème"]
[101,"Beaurain  Alain","France","FRBEAL004843_53.JPG","Macadam","Thème"]
[102,"Nemeroff  Ira","Etats Unis","USNEIR005352_53.JPG","Nice 64","Thème"]
[103,"Rizzato  Pierluigi","Italie","ITRIPI005225_52.JPG","Playing cards","Thème"]
[104,"Lybaert   Daniel","Pays-Bas","NLLYDA005020_54.JPG","Spiegelbeeld","Thème"]
[105,"Tevfik  Ileri","Chypre","CYTEIL002747_53.JPG","The anger","Thème"]
[106,"Xiaoqing  Zhang","Chine","CNXIZH004893_52.JPG","Reflection","Thème"]
[107,"Millin  Robert","Royaume-Uni","GBMIRO005346_53.JPG","Jodphur Street Baker","Thème"]
[108,"Viguier  Gérard","France","FRVIGÉ004835_52.JPG","Correos","Thème"]
[109,"Dong  Ren","Chine","CNDORE005218_53.JPG","Leisure","Thème"]
[110,"Mayer  Abel","France","FRMAAB004770_53.JPG","Sur le pont","Thème"]
[111,"Ruffoli   Luca","Italie","ITRULU005308_51.JPG","Reading good news","Thème"]
[112,"Cadène-Rostany  Alain","France","FRCAAL005021_52.JPG","Le bisou","Thème"]
[113,"Cambornac  Michel","France","FRCAMI004828_52.JPG","au 105","Thème"]
[114,"Kyndt  Daniel","Belgique","BEKYDA004776_54.JPG","Waterliggen","Thème"]
[115,"Widawski  Raymond","Belgique","BEWIRA004804_54.JPG","Tenue d'été","Thème"]
[116,"Barrilliot  Christian","France","FRBACH005300_54.JPG","le graal","Thème"]
[117,"Guinot  Elisabeth","France","FRGUEL005083_52.JPG","Une pause ?","Thème"]
[118,"Keel  David","Royaume-Uni","GBKEDA005347_52.JPG","Left in the street","Thème"]
[119,"Aníbal Ulises  Ruiz","Argentine","ARANRU005145_52.JPG","Reencuentro","Thème"]
[120,"Tieqiang  Li","Chine","CNTILI004875_51.JPG","Outside Window","Thème"]
[121,"Martinet  Thierry","France","FRMATH004779_53.JPG","Discussion","Thème"]
[122,"Dupouy  Michel","France","FRDUMI005283_52.JPG","Feeding time","Thème"]
[123,"Wong  Danny Yen Sin","Malaisie","MYWODA004789_53.JPG","Kathmandu Durbar Square","Thème"]
[124,"Grimfoot  Mats","Suède","SEGRMA005355_51.JPG","Balloons","Thème"]
[125,"Zhiyuan  Cai","Chine","CNZHCA004868_51.JPG","Traditional Custom","Thème"]
[126,"Bleyen  Livinus","Belgique","BEBLLI005325_51.JPG","City Life","Thème"]
[127,"Middleton  Sarah","Royaume-Uni","GBMISA005353_52.JPG","Feeding Time","Thème"]
[128,"Van Calsteren  Louis","Belgique","BEVALO004783_52.JPG","Balayeur","Thème"]
[129,"Daley  Gregory","Etats Unis","USDAGR005032_51.JPG","Shucking Oysters","Thème"]
[130,"Zupunski  Anica","Serbie","MEANZU005003_54.JPG","Selfi on the roof","Thème"]
[131,"Yucelt  Ozcan","Turquie","TRYUOZ005348_53.JPG","GIRLS AND GATE","Thème"]
[132,"Jinyan  Yang","Chine","CNJIYA004888_54.JPG","Waiting in the Snow","Thème"]
[133,"Streitfelder  Theo","Autriche","ATSTTH004732_54.JPG","Wasser","Thème"]
[134,"Ponsaerts  Eugène","Belgique","BEPOEU005244_53.JPG","MARKET 2Sbw.","Thème"]
[135,"Boytell  Kerry","Australie","AUBOKE005070_54.JPG","Venetian Affair","Thème"]
[136,"Scazzola  Laurent","France","FRSCLA005066_53.JPG","Wifi","Thème"]
[137,"Doblander  Roman","Autriche","ATDORO005029_54.JPG","Vegas","Thème"]
[138,"Damstén  Petri","Finlande","FIDAPE004963_52.JPG","Peoples Car","Thème"]
[139,"Torres  André","France","FRTOAN003736_51.JPG","camelidés","Thème"]
[140,"Chen  Lanfeng","Chine","CNCHLA005174_54.JPG","Watching the puppet show","Thème"]
[141,"Duval  Roland","France","FRDURO004955_52.JPG","Isabella","Thème"]
[142,"Lebrun  Jean-Louis","France","FRLEJE005098_52.JPG","L'éventail","Thème"]
[143,"Xiaolian   Zhang","Chine","CNXIZH004892_54.JPG","Vegetable Stall","Thème"]
[144,"Kuang  Ya","Chine","CNKUYA005160_54.JPG","Shuhe old town","Thème"]
[145,"Cambon  Michel","France","FRCAMI005221_52.JPG","L'escalier de la Butte","Thème"]
[146,"Logeais  Dominique","France","FRLODO004794_53.JPG","Grand elephant","Thème"]
[147,"Dorioz  Annie","France","FRDOAN004769_53.JPG","M'dina","Thème"]
[148,"Ma  Xiaopin","Chine","CNMAXI005164_51.JPG","Black pearl","Thème"]
[149,"Synnevaag  Roald","Norvège","NOSYRO004946_54.JPG","Woman in red","Thème"]
[150,"Plovie  Bjorn","Belgique","BEPLBJ004971_53.JPG","Monks","Thème"]
[151,"Al-Mushaifri  Abdulla","Qatar","QAALAB005345_51.JPG","Street Barbers","Thème"]
[152,"Viguier  Mireille","France","FRVIMI004911_53.JPG","Le baiser","Thème"]
[153,"Vigneron  Dominique","France","FRVIDO005078_54.JPG","POLICIA","Thème"]
[154,"Bounine  Jean-Paul","France","FRBOJE004740_52.JPG","Soulagement","Thème"]
[155,"Boutolleau   Monique","France","FRBOMO005105_53.JPG","Petit joggeur","Thème"]
[156,"Wang  Shibo","Chine","CNWASH005167_52.JPG","Small shop assistant","Thème"]
[157,"Salice  Francesca","Italie","ITSAFR005086_51.JPG","WALKING IN OLD HABANA","Thème"]
[158,"Noeth  Lothar","Allemagne","DENOLO005229_54.JPG","Voller Einsatz","Thème"]
[159,"Zhang  Tianming","Chine","CNZHTI005171_51.JPG","In the snow","Thème"]
[160,"Li  Yue","Chine","CNLIYU005198_51.JPG","Be home in this way","Thème"]
[161,"Bai  Shuzhen","Chine","CNBASH005207_54.JPG","Liangshan woman","Thème"]
[162,"Thomas  Bernadette","France","FRTHBE005134_53.JPG","Les amoureux de saint Roch","Thème"]
[163,"Trigalou  Marc","France","FRTRMA005008_54.JPG","Street food","Thème"]
[164,"Pires Dias  José Manuel","France","FRPIJO004798_54.JPG","Viva!!!","Thème"]
[165,"Muñoz  Javier","Espagne","ESMUJA005286_54.JPG","One million please","Thème"]
[166,"Vautrin  Inge","Etats Unis","USVAIN005031_53.JPG","Behind the Lines","Thème"]
[167,"Wojcik  Grzegorz","Pologne","PLWOGR005058_54.JPG","mysterious girl","Thème"]
[168,"Oransay   Fatma Selma","Turquie","TRFAOR005024_51.JPG","Old friends","Thème"]
[169,"Fang  Zhenhong","Chine","CNFAZH005184_54.JPG","Harvest 04","Thème"]
[170,"Fung  Man Yu, Alex","Hong Kong","HKFUMA004988_52.JPG","Snowing 2","Thème"]
[171,"Berlier  Michèle","France","FRBEMI004829_52.JPG","jour de fete","Thème"]
[172,"Sargeant  Anne","France","FRSAAN005065_53.JPG","Mon ptit déj","Thème"]
[173,"Domange  Fernand","France","FRDOFE004951_51.JPG","Blancs Moussis","Thème"]
[174,"Deliège  Jean-Claude","France","FRDEJE004916_52.JPG","Denise en Avignon","Thème"]
[175,"Wojcik  Grzegorz","Pologne","PLWOGR005058_52.JPG","summer (1019)","Thème"]
[176,"Whitby  John","Royaume-Uni","GBWHJO005076_51.JPG","Hard Times","Thème"]
[177,"Cohen  Jean","France","FRCOJE005061_54.JPG","Feu de brume","Thème"]
[178,"De  Granville  Jean-Jacques","Guyane Française","GFDEJE004780_52.JPG","Montmartre","Thème"]
[179,"Bruno  Madeddu","Italie","ITBRMA005387_51.JPG","DIMENSIONE ANTINATURALE 1","Thème"]
[180,"Boulanger  Jean","France","FRBOJE005060_53.JPG","SUR LE MARCHE-PIED","Thème"]
[181,"Marin  Annik","France","FRMAAN005079_54.JPG","Une ruelle la nuit","Thème"]
[182,"Roberto Andres  Geria","Argentine","ARROGE005297_53.JPG","Llegando a la Opera","Thème"]
[183,"Kerekes  Istvan","Hongrie","HUKEIS004861_54.JPG","Life in Balkan","Thème"]
[184,"Gong  Zijie","Chine","CNGOZI005157_54.JPG","The guest puch door","Thème"]
[185,"Chapon  Alexandra","France","FRCHAL004773_52.JPG","Bouder","Thème"]
[186,"Jones  Robert","Timor oriental","TLJORO005318_51.JPG","After the Party","Thème"]
[187,"Hutting  Jacky","Luxembourg","LUHUJA005384_52.JPG","VENDEUR","Thème"]
[188,"Vachon  Roland","France","FRVARO004771_51.JPG","A la recherche d'ombre","Thème"]
[189,"Frances  Georges","France","FRFRGE004906_54.JPG","La conception de las lineas","Thème"]
[190,"Damstén  Petri","Finlande","FIDAPE004963_53.JPG","Waiting","Thème"]
[191,"Jones  Robert","Timor oriental","TLJORO005318_52.JPG","Mea Culpa","Thème"]
[192,"Philippon  André","France","FRPHAN005052_51.JPG","caddy man","Thème"]
[193,"Morel  Jean-Marie","France","FRMOJE004913_53.JPG","Citerne","Thème"]
[194,"Yiliang  Yang","Chine","CNYIYA004889_54.JPG","Bull Jumping","Thème"]
[195,"Lei  Xi","Chine","CNLEXI005219_53.JPG","The street children","Thème"]
[196,"Banq  Jean","France","FRBAJE004935_51.JPG","la liseuse de la gare de Perpignan","Thème"]
[197,"Chen  Lanfeng","Chine","CNCHLA005174_53.JPG","The performance team","Thème"]
[198,"Fekete  Tamas","Hongrie","HUFETA004772_53.JPG","It is hard road","Thème"]
[199,"Wu  Xunwen","Chine","CNWUXU005182_52.JPG","Giving and receiving","Thème"]
[200,"Sargeant  Anne","France","FRSAAN005065_54.JPG","Le chef des coqs","Thème"]
[201,"Plovie  Bjorn","Belgique","BEPLBJ004971_54.JPG","Washing","Thème"]
[202,"Jorge  François","France","FRJOFR004987_51.JPG","A la queue leu-leu","Thème"]
[203,"Bysack   Subrata","Inde","INBYSU005388_52.JPG","ROAD SHOW","Thème"]
[204,"Simon  Claude","Belgique","BESICL004763_54.JPG","Lost in the city 5","Thème"]
[205,"Viswanathan  Ashok","Inde","INVIAS001783_52.JPG","celeberation","Thème"]
[206,"Gong  Zijie","Chine","CNGOZI005157_53.JPG","Pass by","Thème"]
[207,"Jianqiang  Chen","Chine","CNJIJI004848_53.JPG","Street Scene","Thème"]
[208,"Ruffoli   Luca","Italie","ITRULU005308_54.JPG","Anonymous","Thème"]
[209,"Panhuyzen  Jacky","Belgique","BEPAJA005361_53.JPG","Moving","Thème"]
[210,"Lehtonen  Kauko","Finlande","FILEKA005248_54.JPG","Meditation in Berlin","Thème"]
[211,"Wei  Jiandong","Chine","CNWEJI005178_51.JPG","Door closed","Thème"]
[212,"Selzer  Klaus-Peter","Allemagne","DESEKL005085_53.JPG","Lifeguard","Thème"]
[213,"Miao  Yong","Chine","CNMIYO005201_52.JPG","Back in the alley","Thème"]
[214,"Rau  Frank","Allemagne","DERAFR005092_54.JPG","Metro Prag 5","Thème"]
[215,"Yushan  Li","Chine","CNYULI004876_52.JPG","Gift","Thème"]
[216,"Bergo  Arne","Norvège","NOBEAR005380_53.JPG","Man Woman Snowstorm","Thème"]
[217,"Saez  Luis","Argentine","ARSALU005077_51.JPG","Chafalonero","Thème"]
[218,"Magot  Laurent","France","FRMALA005127_51.JPG","Partie de foot","Thème"]
[219,"Pili  Garcia Pitarch","Espagne","ESPIGA005359_52.JPG","Street of Kathmandu","Thème"]
[220,"Gong  Zijie","Chine","CNGOZI005157_51.JPG","Mountain baby celebrate...","Thème"]
[221,"Yan  Jinsong","Chine","CNYAJI005204_54.JPG","Wait","Thème"]
[222,"Zhao  Jinli","Chine","CNZHJI005172_51.JPG","Interesting point","Thème"]
[223,"Huang  Yi","Chine","CNHUYI005209_52.JPG","Passerby 02","Thème"]
[224,"Tjandra  Bernard Susantija","Indonésie","IDTJBE004999_54.JPG","Modern kid","Thème"]
[225,"Torres  André","France","FRTOAN003736_52.JPG","cracheur de feu","Thème"]
[226,"Bushe  Catherine","Irlande","IEBUCA005362_51.JPG","Shadow and substance","Thème"]
[227,"Deniau  Noel","France","FRDENO004802_53.JPG","Miroir","Thème"]
[228,"Duval  Monique","France","FRDUMO004958_53.JPG","Six sans visage","Thème"]
[229,"Viguier  Mireille","France","FRVIMI004911_52.JPG","Jeu d'eau","Thème"]
[230,"Tam  Kam Chiu","Canada","CATAKA004989_52.JPG","Festival day","Thème"]
[231,"Liu  Sui","Chine","CNLISU005162_52.JPG","Enjoying","Thème"]
[232,"Negredo  Julian","Espagne","ESNEJU005043_54.JPG","umbrella man","Thème"]
[233,"Alibrahim  Ahmed","Arabie saoudite","SAALAH005149_53.JPG","Selfie","Thème"]
[234,"Yiliang  Yang","Chine","CNYIYA004889_53.JPG","Slow Down","Thème"]
[235,"Ye  Zhou","Chine","CNYEZH004897_54.JPG","Little Sanitation Workers","Thème"]
[236,"Wang  Jianguo","Chine","CNWAJI005210_52.JPG","Dacca streetscape","Thème"]
[237,"Lebrun  Jean-Louis","France","FRLEJE005098_51.JPG","Le bouquiniste","Thème"]
[238,"Kruger  Willem","Afrique du Sud","ZAKRWI005316_51.JPG","Feet and hand","Thème"]
[239,"Chennubhotla  Yashodhar","Inde","INCHYA004816_53.JPG","performers","Thème"]
[240,"Wei  Jiandong","Chine","CNWEJI005178_54.JPG","Meeting by chance","Thème"]
[241,"Rizzato  Pierluigi","Italie","ITRIPI005225_53.JPG","Rickshaw","Thème"]
[242,"André  Gertosio","France","FRANGE004806_52.JPG","Le car jaune","Thème"]
[243,"Torres  André","France","FRTOAN003736_53.JPG","la pêche","Thème"]
[244,"Rousseau  Jean-René","France","FRROJE005059_51.JPG","solitude","Thème"]
[245,"Lindqvist  Leena-Maija","Finlande","FILILE005275_53.JPG","Smoking bride","Thème"]
[246,"Kastner  Josef","Autriche","ATKAJO005075_51.JPG","in gedanken","Thème"]
[247,"Wiltzius  Nicole","Luxembourg","LUWINI004743_52.JPG","public transport","Thème"]
[248,"Tevfik  Ileri","Chypre","CYTEIL002747_54.JPG","The homeless","Thème"]
[249,"Plovie  Bjorn","Belgique","BEPLBJ004971_51.JPG","Arabian nun","Thème"]
[250,"Wan  Yi","Chine","CNWAYI005017_53.JPG","laneway 3","Thème"]
[251,"Bacchiana  Claude","France","FRBACL004983_52.JPG","Fête de Bayonne","Thème"]
[252,"Ling  Yongxiong","Australie","AULIYO004965_52.JPG","Stroll 4","Thème"]
[253,"Hu  Weiguo","Chine","CNHUWE005159_54.JPG","Yi nationality style","Thème"]
[254,"Bacle  Jean Claude","France","FRBAJE004750_51.JPG","Street art bike","Thème"]
[255,"Lu  Yigang","Chine","CNLUYI005181_54.JPG","Square dancing","Thème"]
[256,"Yan  Zhang","Chine","CNYAZH004894_53.JPG","Cosmopolitan","Thème"]
[257,"Maslin  David M.","Royaume-Uni","GBMADA004781_52.JPG","Pipe Laying","Thème"]
[258,"Tran  Tuan","Etats Unis","USTRTU004961_51.JPG","Basque Dance A04","Thème"]
[259,"Dufau  Françoise","France","FRDUFR004859_54.JPG","Fin de journée","Thème"]
[260,"Chen  Chunpin","Chine","CNCHCH005154_51.JPG","Chess confront","Thème"]
[261,"Kerekes  Istvan","Hongrie","HUKEIS004861_53.JPG","Life in the mud","Thème"]
[262,"Ford  Roger","Royaume-Uni","GBFORO005236_53.JPG","Shot in the Arm","Thème"]
[263,"Banerjee  Sounak","Inde","INBASO005332_53.JPG","Men who stare at goats","Thème"]
[264,"Kruger  Willem","Afrique du Sud","ZAKRWI005316_54.JPG","Spider man","Thème"]
[265,"Stos  Krzysztof","Pologne","PLSTKR005363_52.JPG","Man street","Thème"]
[266,"Kyndt  Daniel","Belgique","BEKYDA004776_53.JPG","Turks gesprek","Thème"]
[267,"Sharples  Jan","Australie","AUSHJA005276_51.JPG","Boredom","Thème"]
[268,"Lei  Ming","Chine","CNLEMI005161_51.JPG","Faith","Thème"]
[269,"Doblander  Roman","Autriche","ATDORO005029_52.JPG","Oscars","Thème"]
[270,"Logeais  Dominique","France","FRLODO004794_54.JPG","Selphie","Thème"]
[271,"Yucelt  Ozcan","Turquie","TRYUOZ005348_52.JPG","COPPER CLEANER","Thème"]
[272,"Strand  Karl","Australie","AUSTKA005367_53.JPG","Mine Mine Mine","Thème"]
[273,"Deniau  Noel","France","FRDENO004802_52.JPG","Jeux d'eau","Thème"]
[274,"Roberto Andres  Geria","Argentine","ARROGE005297_51.JPG","High Street - Old Town","Thème"]
[275,"Roberto Andres  Geria","Argentine","ARROGE005297_52.JPG","Center Dublin","Thème"]
[276,"Ye  Zhou","Chine","CNYEZH004897_51.JPG","Reflection","Thème"]
[277,"Deliège  Jean-Claude","France","FRDEJE004916_54.JPG","Lourdes","Thème"]
[278,"Miao  Yong","Chine","CNMIYO005201_54.JPG","Soap bubble in childhood","Thème"]
[279,"Bai  Shuzhen","Chine","CNBASH005207_53.JPG","Entrance to village","Thème"]
[280,"Deliège  Jean-Claude","France","FRDEJE004916_51.JPG","Voulez-vous danser ...","Thème"]
[281,"Coumbias  John","Afrique du Sud","ZACOJO004744_52.JPG","walking shadow","Thème"]
[282,"Burr  Judy","Etats Unis","USBUJU005090_53.JPG","Spokane Street Music","Thème"]
[283,"Nagy  Lajos","Roumanie","RONALA005144_51.JPG","Colors in the rain","Thème"]
[284,"Bruno  Madeddu","Italie","ITBRMA005387_54.JPG","PIETRE E VOLTI SCONOSCIUTI","Thème"]
[285,"Liu  Sui","Chine","CNLISU005162_53.JPG","Happy party","Thème"]
[286,"Rudy  Tair","Indonésie","IDRUTA005022_51.JPG","Looking Seriously","Thème"]
[287,"Flornoy  Caroline","France","FRFLCA005009_51.JPG","Ensemble","Thème"]
[288,"Synnevaag  Roald","Norvège","NOSYRO004946_53.JPG","En gammel sliter","Thème"]
[289,"Zhang  Tianming","Chine","CNZHTI005171_52.JPG","Lanterns shop","Thème"]
[290,"Lee  Hengki","Indonésie","IDLEHE005383_54.JPG","Stuck","Thème"]
[291,"Bertocci  Vinicio","France","FRBEVI004803_53.JPG","Rues de Spaccanapoli 3","Thème"]
[292,"Larsen  Peter Helmut","Danemark","DKLAPE005351_53.JPG","The last tune","Thème"]
[293,"Vachon  Roland","France","FRVARO004771_53.JPG","Le poids des ombres","Thème"]
[294,"Jong  Sioe Fung","Indonésie","IDJOSI005126_54.JPG","Splash","Thème"]
[295,"Yao  Zhenhai","Chine","CNYAZH005170_54.JPG","Sweet","Thème"]
[296,"Kuang  Ya","Chine","CNKUYA005160_53.JPG","Porter","Thème"]
[297,"Limberg  Huib","Pays-Bas","NLLIHU005337_53.JPG","Another world....!","Thème"]
[298,"Bleyen  Livinus","Belgique","BEBLLI005325_54.JPG","Wall Marrakech","Thème"]
[299,"Boytell  Kerry","Australie","AUBOKE005070_51.JPG","Contrast","Thème"]
[300,"Millin  Robert","Royaume-Uni","GBMIRO005346_54.JPG","You Next Sir","Thème"]
[301,"Debiève  Albert","France","FRDEAL004912_51.JPG","14-juil.","Thème"]
[302,"Huang  Yi","Chine","CNHUYI005209_53.JPG","Passerby 03","Thème"]
[303,"Linstrument  Claude","France","FRLICL004758_52.JPG","Flutiste","Thème"]
[304,"Châtelais  Catherine","France","FRCHCA005310_53.JPG","Le photographe","Thème"]
[305,"Mayer  Abel","France","FRMAAB004770_51.JPG","Pavés mouillés","Thème"]
[306,"Rongguang  Ye","Chine","CNROYE004891_53.JPG","Vendor","Thème"]
[307,"Pili  Garcia Pitarch","Espagne","ESPIGA005359_54.JPG","Vendedores","Thème"]
[308,"De Jong  Franke","Pays-Bas","NLDEFR005290_53.JPG","Lions","Thème"]
[309,"Kastner  Josef","Autriche","ATKAJO005075_54.JPG","Leser","Thème"]
[310,"Barrilliot  Christian","France","FRBACH005300_53.JPG","Promenade a Venise","Thème"]
[311,"Larsson  Benny","Suède","SELABE005371_54.JPG","party","Thème"]
[312,"Bounine  Jean-Paul","France","FRBOJE004740_54.JPG","Retrouvailles","Thème"]
[313,"Mead  Barry","Royaume-Uni","GBMEBA005056_53.JPG","VENETIAN STARE","Thème"]
[314,"Danis  Janos","Hongrie","HUDAJA005115_54.JPG","Traffic Jam","Thème"]
[315,"Chen  Junjie","Chine","CNCHJU005155_53.JPG","Happy holiday","Thème"]
[316,"Kerekes  Istvan","Hongrie","HUKEIS004861_51.JPG","Playground in Balkan","Thème"]
[317,"Jourdain  Roger","France","FRJORO004901_52.JPG","Romantico","Thème"]
[318,"Kwan  Phillip","Canada","CAKWPH005235_52.JPG","At the Market","Thème"]
[319,"Desheng  Xu","Chine","CNDEXU004887_54.JPG","Brother and Sister","Thème"]
[320,"Ermiao  Su","Chine","CNERSU004883_53.JPG","Folk Art","Thème"]
[321,"Bordes  André","France","FRBOAN004742_54.JPG","Sdf","Thème"]
[322,"Yucelt  Ozcan","Turquie","TRYUOZ005348_54.JPG","SHY","Thème"]
[323,"Thies  Judith","Australie","AUTHJU005329_51.JPG","Happy Snapper","Thème"]
[324,"Jianxun  Wu","Chine","CNJIWU004884_53.JPG","Selling Newspaper","Thème"]
[325,"Jorge  François","France","FRJOFR004987_54.JPG","Rayures","Thème"]
[326,"Thomas  Bernadette","France","FRTHBE005134_51.JPG","Les trois copains","Thème"]
[327,"Jorge  François","France","FRJOFR004987_52.JPG","La clasico","Thème"]
[328,"Yana  Hu","Chine","CNYAHU004871_53.JPG","Vendor beside the Train","Thème"]
[329,"Sahut  Michel","France","FRSAMI004853_54.JPG","Ensemble","Thème"]
[330,"Hyvernaud  Marie","France","FRHYMA004933_54.JPG","Retour de marché","Thème"]
[331,"Xiaoguang  Zhao","Chine","CNXIZH004896_52.JPG","Old Buddies","Thème"]
[332,"Thomas  Bernadette","France","FRTHBE005134_52.JPG","Marseille","Thème"]
[333,"Bordes-Pagès  Gilles","France","FRBOGI005378_52.JPG","Lax sherifs","Thème"]
[334,"Thies  Judith","Australie","AUTHJU005329_53.JPG","Summer Cafe","Thème"]
[335,"Jones  Robert","Timor oriental","TLJORO005318_53.JPG","The Angry man","Thème"]
[336,"Larsen  Peter Helmut","Danemark","DKLAPE005351_54.JPG","Reading","Thème"]
[337,"Li  Jianping","Chine","CNLIJI005176_51.JPG","Meeting","Thème"]
[338,"Jianxun  Wu","Chine","CNJIWU004884_54.JPG","Little Helper","Thème"]
[339,"Mead  Barry","Royaume-Uni","GBMEBA005056_51.JPG","SPECTRE","Thème"]
[340,"Dumangin  Jacky","France","FRDUJA002740_53.JPG","Le bureau","Thème"]
[341,"Tjandra  Bernard Susantija","Indonésie","IDTJBE004999_51.JPG","Snapping","Thème"]
[342,"Noguero Cazorla  Andreu","Espagne","ESNOAN005128_51.JPG","Beisbol a Cuba","Thème"]
[343,"Doblander  Roman","Autriche","ATDORO005029_53.JPG","San Francisco","Thème"]
[344,"Lybaert   Daniel","Pays-Bas","NLLYDA005020_51.JPG","In de tunnel","Thème"]
[345,"Swannick  John","Royaume-Uni","GBSWJO004832_51.JPG","A Windy Day","Thème"]
[346,"Schuetze  Horst","Allemagne","DESCHO005386_52.JPG","Gasse in Trinidad","Thème"]
[347,"Swarte  Frans","Royaume-Uni","GBSWFR005025_52.JPG","arrangement","Thème"]
[348,"Ye  Zhou","Chine","CNYEZH004897_52.JPG","Old but Vigorous","Thème"]
[349,"Wang  Bingcheng","Chine","CNWABI005177_53.JPG","Playmate","Thème"]
[350,"Panhuyzen  Jacky","Belgique","BEPAJA005361_52.JPG","Kolkata Milkmen","Thème"]
[351,"Zhong  Huan","Chine","CNZHHU004996_51.JPG","Happy childhood","Thème"]
[352,"Streitfelder  Theo","Autriche","ATSTTH004732_53.JPG","Leaders","Thème"]
[353,"Glandon  Laurent","France","FRGLLA004809_51.JPG","Montmartre 57902","Thème"]
[354,"Xiaoqing  Chen","Chine","CNXICH004869_53.JPG","Childish","Thème"]
[355,"Paillé  Jean-Claude","France","FRPAJE005364_52.JPG","Devant l'affiche","Thème"]
[356,"Guinot  Elisabeth","France","FRGUEL005083_51.JPG","Envieuse ?","Thème"]
[357,"Xiaolian   Zhang","Chine","CNXIZH004892_53.JPG","Busy","Thème"]
[358,"Yonghong  Jin","Chine","CNYOJI004873_53.JPG","Take Shower","Thème"]
[359,"Choliz  Santiago","Espagne","ESCHSA005146_53.JPG","showcase","Thème"]
[360,"Banerjee  Sounak","Inde","INBASO005332_54.JPG","Return to innocence","Thème"]
[361,"Vu Phuoc   Nguyen","Viet Nam","VNVUNG005376_51.JPG","The Father","Thème"]
[362,"Hyllseth  Torhild","Norvège","NOHYTO004760_52.JPG","Night in Marvao","Thème"]
[363,"Pili  Garcia Pitarch","Espagne","ESPIGA005359_51.JPG","Pigeons of Durbar Square","Thème"]
[364,"Kazepidis  Vasilis","Grèce","GRKAVA005295_54.JPG","Surprised look","Thème"]
[365,"Yucelt  Ozcan","Turquie","TRYUOZ005348_51.JPG","O<can Yucelt 1","Thème"]
[366,"Xiaopin  Ma","Chine","CNXIMA004881_54.JPG","Bright Sunshine","Thème"]
[367,"Bouthier  Brigitte","France","FRBOBR004940_51.JPG","Jeux d'eau","Thème"]
[368,"Pantazis  Chris","Grèce","GRPACH005330_53.JPG","Lost in the mist of time","Thème"]
[369,"Rondel  Brigitte","France","FRROBR004792_54.JPG","Puzzle gouzou","Thème"]
[370,"Leverne   Jean Michel","France","FRLEJE004812_53.JPG","Réflexion 3","Thème"]
[371,"Abussaud  Firas","Arabie saoudite","SAABFI004981_53.JPG","Ignored","Thème"]
[372,"Le Mouel  Martine","France","FRLEMA004827_52.JPG","la plazza","Thème"]
[373,"Dorioz  Annie","France","FRDOAN004769_52.JPG","Funchal 13h28d","Thème"]
[374,"Rongguang  Ye","Chine","CNROYE004891_51.JPG","Greedy Children","Thème"]
[375,"Martinet  Thierry","France","FRMATH004779_52.JPG","Chevauchée sauvage","Thème"]
[376,"Taborda  Joao","Portugal","PTTAJO005256_53.JPG","The Flying Man","Thème"]
[377,"Al-Mushaifri  Abdulla","Qatar","QAALAB005345_53.JPG","Street Shop","Thème"]
[378,"Legrand  Jean Luc","Belgique","BELEJE005309_51.JPG","Hésitation","Thème"]
[379,"Logeais  Dominique","France","FRLODO004794_52.JPG","Red bus","Thème"]
[380,"Doblander  Roman","Autriche","ATDORO005029_51.JPG","Casino","Thème"]
[381,"Wei  Fangru","Chine","CNWEFA005168_51.JPG","Lift the thangka","Thème"]
[382,"Balpe  Laurent","France","FRBALA005123_52.JPG","VENISE PLACE ST MARC","Thème"]
[383,"Gaboriau  Christine","France","FRGACH004791_54.JPG","What's that","Thème"]
[384,"Landon  Patrick","France","FRLAPA005064_51.JPG","Trafic","Thème"]
[385,"Middleton  Sarah","Royaume-Uni","GBMISA005353_53.JPG","Red Umbrella","Thème"]
[386,"Pauly  Jean","France","FRPAJE004765_52.JPG","Danse sur le pavé","Thème"]
[387,"Banq  Jean","France","FRBAJE004935_54.JPG","rue des quinze degrés","Thème"]
[388,"Cambornac  Michel","France","FRCAMI004828_53.JPG","indifference","Thème"]
[389,"Duval  Roland","France","FRDURO004955_54.JPG","Martin","Thème"]
[390,"Bysack   Subrata","Inde","INBYSU005388_54.JPG","ROADSIDE SHOWER","Thème"]
[391,"Bleyen  Livinus","Belgique","BEBLLI005325_53.JPG","Mosque Visitor","Thème"]
[392,"Danne  Johansen","Danemark","DKDAJO005231_51.JPG","Blue","Thème"]
[393,"Burlon  Georges","France","FRBUGE004924_52.JPG","L'homme en vert","Thème"]
[394,"Lindqvist  Leena-Maija","Finlande","FILILE005275_51.JPG","Blessing hand of Mont Saint Michel","Thème"]
[395,"Hu  Weiguo","Chine","CNHUWE005159_53.JPG","Sundries in mountain","Thème"]
[396,"Kwok  Man Wo","Hong Kong","HKKWMA005033_51.JPG","Cafe C","Thème"]
[397,"Danis  Janos","Hongrie","HUDAJA005115_53.JPG","Street Musicians","Thème"]
[398,"Héritier  Jacques","France","FRHÉJA004860_51.JPG","Consomation Bancaire","Thème"]
[399,"Desheng  Xu","Chine","CNDEXU004887_52.JPG","Going Home","Thème"]
[400,"Peters  Kenneth","Ecosse","GBSPEKE005242_54.JPG","Millennium Bridge St Pauls","Thème"]
[401,"Jourdain  Roger","France","FRJORO004901_53.JPG","Tired","Thème"]
[402,"Cossé  Christophe","France","FRCOCH005350_53.JPG","le ballon","Thème"]
[403,"Duval  Roland","France","FRDURO004955_53.JPG","Jeanne","Thème"]
[404,"Palfrader  Josef","Autriche","ATPAJO005340_51.JPG","Pfannenmacher","Thème"]
[405,"Oransay   Fatma Selma","Turquie","TRFAOR005024_52.JPG","Friendship","Thème"]
[406,"Xu  Ping","Chine","CNXUPI005179_52.JPG","Chongqing city ...","Thème"]
[407,"Blondel  Christian","France","FRBLCH004786_53.JPG","La ruelle 2","Thème"]
[408,"Gilson  Guy","Belgique","BEGIGU005108_52.JPG","Partage","Thème"]
[409,"Lehmann  François","France","FRLEFR004914_54.JPG","Voitures rouge","Thème"]
[410,"Xia  Tiangong","Chine","CNXITI005211_54.JPG","Transition","Thème"]
[411,"Vasilev  Yuliy","Bulgarie","BGVAYU004978_53.JPG","Music for Deaf 6","Thème"]
[412,"Al-Mushaifri  Abdulla","Qatar","QAALAB005345_52.JPG","Economic Crisis","Thème"]
[413,"Xiaoqing  Chen","Chine","CNXICH004869_52.JPG","Traditional Communication Media","Thème"]
[414,"Yang  Fu","Chine","CNYAFU005169_52.JPG","Gossip","Thème"]
[415,"Beyers  Neels","Afrique du Sud","ZABENE005131_51.JPG","Hotel","Thème"]
[416,"Hu  Weiguo","Chine","CNHUWE005159_51.JPG","Dry noodles in the sun","Thème"]
[417,"Yan  Jinsong","Chine","CNYAJI005204_52.JPG","Hello","Thème"]
[418,"Cividin  Dino","Belgique","BECIDI004752_53.JPG","Manneken pis","Thème"]
[419,"King  Francis","Canada","CAKIFR005245_54.JPG","Loneliness","Thème"]
[420,"Ulmann  Denis","France","FRULDE004824_54.JPG","priere","Thème"]
[421,"Dumangin  Jacky","France","FRDUJA002740_54.JPG","Musiciens","Thème"]
[422,"Ford  Angela","Royaume-Uni","GBFOAN005228_54.JPG","The Streets of New Orleans","Thème"]
[423,"Herbillon  Christian","Belgique","BEHECH005112_53.JPG","taormina 2","Thème"]
[424,"Morel  Jean-Marie","France","FRMOJE004913_52.JPG","Casques","Thème"]
[425,"Heriot  James","Australie","AUHEJA005109_51.JPG","Behind the Door","Thème"]
[426,"Albrecht  Urs","Suisse","CHALUR005041_51.JPG","Brussels station","Thème"]
[427,"Dong  Ren","Chine","CNDORE005218_52.JPG","Boy with firelock","Thème"]
[428,"Venning  Jeffrey","Australie","AUVEJE004840_53.JPG","Shanghai Village","Thème"]
[429,"Geinguenaud  Jean-René","France","FRGEJE004834_52.JPG","Mariage","Thème"]
[430,"Taborda  Joao","Portugal","PTTAJO005256_52.JPG","I m Here","Thème"]
[431,"Al-Mushaifri  Abdulla","Qatar","QAALAB005345_54.JPG","Pursuit Of Happiness","Thème"]
[432,"Bergo  Arne","Norvège","NOBEAR005380_52.JPG","Pistoia Hardware Store","Thème"]
[433,"Pillik  Manfred","Autriche","ATPIMA004926_54.JPG","Traeume","Thème"]
[434,"Damstén  Petri","Finlande","FIDAPE004963_54.JPG","Xmas Alley","Thème"]
[435,"Whitby  John","Royaume-Uni","GBWHJO005076_53.JPG","Yellow Cab","Thème"]
[436,"Cadène-Rostany  Alain","France","FRCAAL005021_53.JPG","Skate","Thème"]
[437,"Rudy  Tair","Indonésie","IDRUTA005022_54.JPG","Souvenirs Seller","Thème"]
[438,"Wiltzius  Nicole","Luxembourg","LUWINI004743_54.JPG","the stairs","Thème"]
[439,"Long  Hua","Chine","CNLOHU005186_51.JPG","One moment","Thème"]
[440,"Long  Hua","Chine","CNLOHU005186_53.JPG","Street impression","Thème"]
[441,"Di Tommaso  Angelo","France","FRDIAN004767_53.JPG","Regards croisées","Thème"]
[442,"Cheuk  Shu","Etats Unis","USCHSH004994_53.JPG","Kissing In APark","Thème"]
[443,"Mayer  Abel","France","FRMAAB004770_52.JPG","Rendez-vous","Thème"]
[444,"Albrecht  Urs","Suisse","CHALUR005041_52.JPG","Feeding pigeons","Thème"]
[445,"Boytell  Kerry","Australie","AUBOKE005070_53.JPG","Indian Bride and Groom","Thème"]
[446,"Sacksteder   Hubert","France","FRSAHU004919_53.JPG","Trottoirs de Manille 3","Thème"]
[447,"He  Xianzheng","Chine","CNHEXI005191_53.JPG","Sister","Thème"]
[448,"Taborda  Joao","Portugal","PTTAJO005256_54.JPG","The National Gallery","Thème"]
[449,"Magnier  Jocelyne","France","FRMAJO004826_51.JPG","bonnes nouvelles","Thème"]
[450,"Yang  Liming","Chine","CNYALI005217_52.JPG","Go to school","Thème"]
[451,"Csomortani  Istvan","Suède","SECSIS005326_51.JPG","Baoshan City","Thème"]
[452,"Chan  Dany","Canada","CA CDA005298_53.JPG","Street Food In Laos 102","Thème"]
[453,"Wang  Li","Chine","CNWALI005213_51.JPG","Focus","Thème"]
[454,"Pillik  Manfred","Autriche","ATPIMA004926_51.JPG","Bedrohung","Thème"]
[455,"Sargeant  Anne","France","FRSAAN005065_51.JPG","Choux à la crème","Thème"]
[456,"Châtelais  Catherine","France","FRCHCA005310_51.JPG","Abrivado 1","Thème"]
[457,"Lu  Yigang","Chine","CNLUYI005181_51.JPG","Morning swimming diver","Thème"]
[458,"Cambon  Michel","France","FRCAMI005221_51.JPG","Epouillage public","Thème"]
[459,"Huang  Yi","Chine","CNHUYI005209_51.JPG","Passerby 01","Thème"]
[460,"Scazzola  Laurent","France","FRSCLA005066_52.JPG","In white","Thème"]
[461,"Huo  Qiang","Chine","CNHUQI005194_54.JPG","The water sprinkling festival","Thème"]
[462,"Linstrument  Claude","France","FRLICL004758_54.JPG","Sieste","Thème"]
[463,"Le Mouel  Martine","France","FRLEMA004827_51.JPG","glenfada","Thème"]
[464,"Li  Jianping","Chine","CNLIJI005176_54.JPG","Together","Thème"]
[465,"Palfrader  Josef","Autriche","ATPAJO005340_53.JPG","Kammacher","Thème"]
[466,"Herbillon  Christian","Belgique","BEHECH005112_54.JPG","the game","Thème"]
[467,"Bordes-Pagès  Gilles","France","FRBOGI005378_54.JPG","Tokyo punks","Thème"]
[468,"Kastner  Josef","Autriche","ATKAJO005075_53.JPG","Reisender","Thème"]
[469,"King  Francis","Canada","CAKIFR005245_53.JPG","Busy Fruit Market Of Santiago","Thème"]
[470,"Lambropoulou  Eva","Grèce","GRLAEV004910_51.JPG","I ARE","Thème"]
[471,"Trigalou  Marc","France","FRTRMA005008_52.JPG","Neige sur New-York","Thème"]
[472,"Panhuyzen  Jacky","Belgique","BEPAJA005361_51.JPG","Far Away","Thème"]
[473,"Hyvernaud  Marie","France","FRHYMA004933_53.JPG","Liberté chérie","Thème"]
[474,"Jong  Sioe Fung","Indonésie","IDJOSI005126_52.JPG","Tofu Maker","Thème"]
[475,"Zhong  Huan","Chine","CNZHHU004996_52.JPG","Side street fair","Thème"]
[476,"Vanneuville  Jacques","France","FRVAJA004741_53.JPG","Selfi","Thème"]
[477,"Wang  Jianguo","Chine","CNWAJI005210_54.JPG","Tangle at fish market","Thème"]
[478,"Keene  Paul","Royaume-Uni","GBKEPA005358_53.JPG","Naked bike ride spectators 8860","Thème"]
[479,"Cossé  Christophe","France","FRCOCH005350_54.JPG","Chinatown","Thème"]
[480,"Ling  Yongxiong","Australie","AULIYO004965_51.JPG","Disabled car race","Thème"]
[481,"Trigalou  Marc","France","FRTRMA005008_51.JPG","Habana street","Thème"]
[482,"Choliz  Santiago","Espagne","ESCHSA005146_51.JPG","clarinettist 1","Thème"]
[483,"Peters  Kenneth","Ecosse","GBSPEKE005242_51.JPG","Meaning Of Life","Thème"]
[484,"Beaurain  Alain","France","FRBEAL004843_52.JPG","Tendresse","Thème"]
[485,"Lander  Igor","Ukraine","UALAIG005026_51.JPG","Pigeons shepherdess","Thème"]
[486,"Hao  Jincheng","Chine","CNHAJI005190_52.JPG","Love","Thème"]
[487,"Yan  Jinsong","Chine","CNYAJI005204_51.JPG","Early market","Thème"]
[488,"Lu  Yigang","Chine","CNLUYI005181_53.JPG","The goldfish and little girl","Thème"]
[489,"Feehan  Sean","Irlande","IEFESE005356_51.JPG","Evening Stroll","Thème"]
[490,"Fang  Zhenhong","Chine","CNFAZH005184_52.JPG","Harvest 02","Thème"]
[491,"Rinaldy  Rafly","Indonésie","IDRIRA004925_53.JPG","Palmerah Train Station","Thème"]
[492,"Lehmann  François","France","FRLEFR004914_51.JPG","Femme aux pigeons","Thème"]
[493,"Palma  Enrico","Italie","ITPAEN005111_51.JPG","Vanishing fog","Thème"]
[494,"Bergo  Arne","Norvège","NOBEAR005380_54.JPG","Lady with Stroller in Snow","Thème"]
[495,"Van Eenoo  Michele","France","FRVAMI004799_51.JPG","La mariee de Burano","Thème"]
[496,"Rinaldy  Rafly","Indonésie","IDRIRA004925_52.JPG","Naik Delman","Thème"]
[497,"Heriot  James","Australie","AUHEJA005109_53.JPG","Kathmandu Woman","Thème"]
[498,"Panhuyzen  Jacky","Belgique","BEPAJA005361_54.JPG","Ox Waggon","Thème"]
[499,"Domange  Fernand","France","FRDOFE004951_54.JPG","Glycines","Thème"]
[500,"Johnston  Eion","Royaume-Uni","GBJOEI004756_51.JPG","Berlin views","Thème"]
[501,"Muñoz  Javier","Espagne","ESMUJA005286_53.JPG","That's not for me","Thème"]
[502,"Bounine  Jean-Paul","France","FRBOJE004740_51.JPG","Fillette au chien","Thème"]
[503,"Streitfelder  Theo","Autriche","ATSTTH004732_51.JPG","Discussion","Thème"]
[504,"Le Fustec  Sébastien","France","FRLESÉ004830_54.JPG","je veux aller la bas","Thème"]
[505,"Burr  Judy","Etats Unis","USBUJU005090_52.JPG","Mural Painters","Thème"]
[506,"Guinot  Elisabeth","France","FRGUEL005083_54.JPG","Un pour deux","Thème"]
[507,"Chen  Chunpin","Chine","CNCHCH005154_53.JPG","Meet in the corner","Thème"]
[508,"Lee  Hengki","Indonésie","IDLEHE005383_51.JPG","Kawagoe","Thème"]
[509,"Russo  Christophe","France","FRRUCH004821_51.JPG","en attendant la gloire","Thème"]
[510,"Linstrument  Claude","France","FRLICL004758_51.JPG","Niburkini","Thème"]
[511,"Dallavalle  Jean","France","FRDAJE004793_53.JPG","Happy day in Budapest","Thème"]
[512,"Li  Jianping","Chine","CNLIJI005176_53.JPG","The street in Lhasa","Thème"]
[513,"Tiarasanti  Galuh","Indonésie","IDTIGA004993_54.JPG","between the temple","Thème"]
[514,"Roussillon  Claude","France","FRROCL004852_54.JPG","Chefchaouen3","Thème"]
[515,"Swarte  Frans","Royaume-Uni","GBSWFR005025_51.JPG","after the rains","Thème"]
[516,"Saleilles  Jean","France","FRSAJE005011_53.JPG","La famille jaune","Thème"]
[517,"Adijuwono  Slamet","Indonésie","IDADSL005152_54.JPG","giving 3","Thème"]
[518,"Papadakis  Manolis","Grèce","GRPAMA005302_53.JPG","Morning light1","Thème"]
[519,"Rondel  Brigitte","France","FRROBR004792_52.JPG","Détachement","Thème"]
[520,"Peer  Albert","Autriche","ATPEAL004957_52.JPG","I dream of venice","Thème"]
[521,"Lu  Ping","Chine","CNLUPI005199_54.JPG","Small business","Thème"]
[522,"Chapon  Alexandra","France","FRCHAL004773_53.JPG","Décrépitude","Thème"]
[523,"Deniau  Noel","France","FRDENO004802_54.JPG","Violoniste","Thème"]
[524,"Widawski  Raymond","Belgique","BEWIRA004804_53.JPG","Promenade à Bruxelles","Thème"]
[525,"Johnston  Eion","Royaume-Uni","GBJOEI004756_52.JPG","Circle window","Thème"]
[526,"Potts  Gary","Etats Unis","USPOGA005349_52.JPG","On The Streets","Thème"]
[527,"Xiaopin  Ma","Chine","CNXIMA004881_52.JPG","Happy to See off","Thème"]
[528,"Frances  Georges","France","FRFRGE004906_53.JPG","The street pianist","Thème"]
[529,"Abussaud  Firas","Arabie saoudite","SAABFI004981_52.JPG","IceCream 2","Thème"]
[530,"Banerjee  Sounak","Inde","INBASO005332_51.JPG","Streets of blue","Thème"]
[531,"Venning  Jeffrey","Australie","AUVEJE004840_51.JPG","City Transport","Thème"]
[532,"Paillé  Jean-Claude","France","FRPAJE005364_51.JPG","Carrer en Donostia","Thème"]
[533,"Li  Fang","Chine","CNLIFA005185_52.JPG","Have a rest","Thème"]
[534,"Gong  Zijie","Chine","CNGOZI005157_52.JPG","Old ferry","Thème"]
[535,"Jong  Sioe Fung","Indonésie","IDJOSI005126_51.JPG","Lets Shower","Thème"]
[536,"Alibrahim  Ahmed","Arabie saoudite","SAALAH005149_52.JPG","Standing","Thème"]
[537,"Simon  Claude","Belgique","BESICL004763_53.JPG","Lost in the city 4","Thème"]
[538,"Feng  Jiashun","Chine","CNFEJI005398_51.JPG","accident","Thème"]
[539,"Châtelais  Catherine","France","FRCHCA005310_52.JPG","Bistrot de Lyon","Thème"]
[540,"Magot  Laurent","France","FRMALA005127_53.JPG","Soldes","Thème"]
[541,"Bruno  Madeddu","Italie","ITBRMA005387_52.JPG","DIMENSIONE ANTINATURALE 6","Thème"]
[542,"Narsiskus  Tedy","Indonésie","IDNATE004936_54.JPG","ubud morning","Thème"]
[543,"Blondel  Christian","France","FRBLCH004786_54.JPG","Werregarenstraatje","Thème"]
[544,"Lebrun  Jean-Louis","France","FRLEJE005098_54.JPG","Plan sur plan","Thème"]
[545,"Gaboriau  Christine","France","FRGACH004791_53.JPG","Jeu de chien...","Thème"]
[546,"Chan  Dany","Canada","CA CDA005298_52.JPG","Dusty Road In Cambodia","Thème"]
[547,"Damstén  Petri","Finlande","FIDAPE004963_51.JPG","Crap from the Sky","Thème"]
[548,"Lechanski  M.","Royaume-Uni","GBLEM.004934_52.JPG","The Philosopher","Thème"]
[549,"Metlitzky  Ivor","Australie","AUMEIV003738_51.JPG","Hang-Drums-Player","Thème"]
[550,"De Jong  Franke","Pays-Bas","NLDEFR005290_51.JPG","Silhouets","Thème"]
[551,"Verelst  Greta","Belgique","BEVEGR004945_53.JPG","Germaine","Thème"]
[552,"Vachon  Roland","France","FRVARO004771_52.JPG","Croisements","Thème"]
[553,"Pantazis  Chris","Grèce","GRPACH005330_52.JPG","Gipsy boy","Thème"]
[554,"Gilliot  Michel","Belgique","BEGIMI004774_53.JPG","Rock Strangers 2","Thème"]
[555,"Van Balken  Marcel","Pays-Bas","NLVAMA005046_54.JPG","Repair","Thème"]
[556,"Le Mouel  Martine","France","FRLEMA004827_54.JPG","l avenir de nos enfants","Thème"]
[557,"Comunale  Brittany","Etats Unis","USCOBR005237_54.JPG","Xiamen Carrier","Thème"]
[558,"Lei  Xi","Chine","CNLEXI005219_52.JPG","Market day","Thème"]
[559,"Liu  Sui","Chine","CNLISU005162_51.JPG","Family of four","Thème"]
[560,"Ye  Zhou","Chine","CNYEZH004897_53.JPG","Hair Cut","Thème"]
[561,"Xia  Tiangong","Chine","CNXITI005211_53.JPG","Onr corner of street","Thème"]
[562,"Becker  Werner","Allemagne","DEBEWE005339_54.JPG","Tower Walk","Thème"]
[563,"Alibrahim  Ahmed","Arabie saoudite","SAALAH005149_51.JPG","Bridge girl","Thème"]
[564,"Feng  Jiashun","Chine","CNFEJI005398_53.JPG","salute","Thème"]
[565,"Xia  Tiangong","Chine","CNXITI005211_52.JPG","Night talk","Thème"]
[566,"Grimfoot  Mats","Suède","SEGRMA005355_54.JPG","Street soccer, Phnom Penh","Thème"]
[567,"Yan  Zhang","Chine","CNYAZH004894_54.JPG","Fishmonger","Thème"]
[568,"Metlitzky  Ivor","Australie","AUMEIV003738_54.JPG","The-Enertainment-Team","Thème"]
[569,"Hyllseth  Torhild","Norvège","NOHYTO004760_53.JPG","Street performance","Thème"]
[570,"Balpe  Laurent","France","FRBALA005123_54.JPG","RUNNING ON THE ROOF","Thème"]
[571,"Johnston  Eion","Royaume-Uni","GBJOEI004756_54.JPG","Walk along","Thème"]
[572,"Dumangin  Jacky","France","FRDUJA002740_52.JPG","Homme à la canne","Thème"]
[573,"Aníbal Ulises  Ruiz","Argentine","ARANRU005145_53.JPG","Carlitos","Thème"]
[574,"Lehtonen  Kauko","Finlande","FILEKA005248_53.JPG","Important Paper","Thème"]
[575,"Zhiyuan  Cai","Chine","CNZHCA004868_53.JPG","Dragon Dance","Thème"]
[576,"Berlier  Michèle","France","FRBEMI004829_54.JPG","tourisme","Thème"]
[577,"Martinet  Thierry","France","FRMATH004779_54.JPG","Manège de taxis","Thème"]
[578,"Roussillon  Claude","France","FRROCL004852_52.JPG","Chefchaouen1","Thème"]
[579,"Yana  Hu","Chine","CNYAHU004871_54.JPG","Keeping Warm","Thème"]
[580,"Vajaianu  Alexandre","Roumanie","ROVAAL004990_53.JPG","LES APPRENTIES","Thème"]
[581,"Zhou  Jianyong","Chine","CNZHJI005180_52.JPG","Boy who selling melon","Thème"]
[582,"Balpe  Laurent","France","FRBALA005123_53.JPG","GERONIMO (WORKING UNDER THE RAIN)","Thème"]
[583,"Dorioz  Annie","France","FRDOAN004769_54.JPG","Traverser vite","Thème"]
[584,"Duong  Bobta","France","FRDUBO005093_52.JPG","Rue de New-York","Thème"]
[585,"Nemeroff  Ira","Etats Unis","USNEIR005352_51.JPG","Amsterdam 204","Thème"]
[586,"Sahut  Michel","France","FRSAMI004853_51.JPG","Complicité","Thème"]
[587,"Keel  David","Royaume-Uni","GBKEDA005347_54.JPG","War wall mural on Pope John Paul street","Thème"]
[588,"Sustrac  Bernard","France","FRSUBE005067_53.JPG","Liberté","Thème"]
[589,"Ma  Xiaopin","Chine","CNMAXI005164_53.JPG","Home near the rail","Thème"]
[590,"King  Francis","Canada","CAKIFR005245_52.JPG","Leather Merchant Of  Morroco","Thème"]
[591,"Yonghong  Jin","Chine","CNYOJI004873_51.JPG","Rickshaw Drivers","Thème"]
[592,"Viguier  Gérard","France","FRVIGÉ004835_51.JPG","Buenos Aires-La Boca","Thème"]
[593,"Saez  Luis","Argentine","ARSALU005077_52.JPG","Vendedora de Alegria","Thème"]
[594,"Yiliang  Yang","Chine","CNYIYA004889_52.JPG","Way of A Pilgrim","Thème"]
[595,"Barbareau   Dominique","France","FRBADO004813_51.JPG","Indifférence","Thème"]
[596,"Niron  Jean Michel","France","FRNIJE004825_52.JPG","pommeraye","Thème"]
[597,"Deliège  Jean-Claude","France","FRDEJE004916_53.JPG","Clin d'oeil","Thème"]
[598,"Blondel  Christian","France","FRBLCH004786_52.JPG","La femme en bleu","Thème"]
[599,"Salice  Francesca","Italie","ITSAFR005086_53.JPG","STREET FOOTBALL","Thème"]
[600,"Ruffoli   Luca","Italie","ITRULU005308_53.JPG","Portobello carillon","Thème"]
[601,"Domange  Fernand","France","FRDOFE004951_52.JPG","Colors","Thème"]
[602,"Larsen  Peter Helmut","Danemark","DKLAPE005351_52.JPG","Bubbles","Thème"]
[603,"Teo  Giap Chiu","Singapour","SGTEGI004966_51.JPG","Go To Ang Moi KoiTample","Thème"]
[604,"Thies  Judith","Australie","AUTHJU005329_54.JPG","Wedding Photoshoot, Melbourne","Thème"]
[605,"Xiaoqing  Zhang","Chine","CNXIZH004893_53.JPG","Chat","Thème"]
[606,"Gleeson  William","Irlande","IEGLWI004845_52.JPG","Enjoyment","Thème"]
[607,"Saleilles  Jean","France","FRSAJE005011_52.JPG","Hasards pluvieux","Thème"]
[608,"Van Balken  Marcel","Pays-Bas","NLVAMA005046_51.JPG","Three umbrellas","Thème"]
[609,"Ponsaerts  Eugène","Belgique","BEPOEU005244_51.JPG","BARBIER 2","Thème"]
[610,"Chatelais  Jean-Louis","France","FRCHJE005313_51.JPG","Abrivado Le Grau du Roi","Thème"]
[611,"Terreau  Jean-Michel","France","FRTEJE004850_52.JPG","Photo souvenir","Thème"]
[612,"Fekete  Tamas","Hongrie","HUFETA004772_51.JPG","Assisi","Thème"]
[613,"Whitby  John","Royaume-Uni","GBWHJO005076_52.JPG","Hire Car","Thème"]
[614,"Ulmann  Denis","France","FRULDE004824_53.JPG","pose","Thème"]
[615,"Fry  Martin","Royaume-Uni","GBFRMA005234_53.JPG","Bristol in Colour","Thème"]
[616,"Dumas  Jean-Louis","France","FRDUJE005062_52.JPG","Collioure color","Thème"]
[617,"Van Eenoo  Michele","France","FRVAMI004799_52.JPG","L 'homme au parapluie","Thème"]
[618,"Bian  Zihai","Chine","CNBIZI005189_52.JPG","Fold the paper","Thème"]
[619,"Hioe  Jason","Indonésie","IDHIJA004930_52.JPG","help out a vet","Thème"]
[620,"Jones  Robert","Timor oriental","TLJORO005318_54.JPG","The Urban Jungle","Thème"]
[621,"Cambornac  Michel","France","FRCAMI004828_51.JPG","a ouro preto","Thème"]
[622,"Rizzato  Pierluigi","Italie","ITRIPI005225_54.JPG","Shangai seller","Thème"]
[623,"Lorant  Julie","France","FRLOJU004817_51.JPG","Mariée sur le fil","Thème"]
[624,"Keene  Paul","Royaume-Uni","GBKEPA005358_51.JPG","Just Checking","Thème"]
[625,"Noguero Cazorla  Andreu","Espagne","ESNOAN005128_54.JPG","Tranvia en Lisboa","Thème"]
[626,"Charalambous  Constantinos","Chypre","CYCHCO005285_54.JPG","The phonecall","Thème"]
[627,"Vanneuville  Jacques","France","FRVAJA004741_51.JPG","La religieuse","Thème"]
[628,"Morel  Jean-Marie","France","FRMOJE004913_51.JPG","Ambulant","Thème"]
[629,"Dencausse  Bernard","France","FRDEBE005080_52.JPG","Billy","Thème"]
[630,"Torres  André","France","FRTOAN003736_54.JPG","la petite reine","Thème"]
[631,"Csomortani  Istvan","Suède","SECSIS005326_53.JPG","Lijiang Lady","Thème"]
[632,"Balpe  Laurent","France","FRBALA005123_51.JPG","COLOR ME","Thème"]
[633,"Maslin  David M.","Royaume-Uni","GBMADA004781_53.JPG","Stop Me and Buy One","Thème"]
[634,"Zhou  Shengli","Chine","CNZHSH005173_54.JPG","V","Thème"]
[635,"Flornoy  Caroline","France","FRFLCA005009_53.JPG","Les vapeurs des dieux","Thème"]
[636,"Terreau  Jean-Michel","France","FRTEJE004850_53.JPG","Shooting","Thème"]
[637,"Brechtel  Bärbel","Allemagne","DEBRBÄ005254_53.JPG","Under the Bridge","Thème"]
[638,"Suszkiewicz  Ole","Danemark","DKSUOL005051_53.JPG","Venice Street","Thème"]
[639,"Schweden  Wolfgang","Allemagne","DESCWO004842_54.JPG","Red Angel No Nine","Thème"]
[640,"Barrilliot  Christian","France","FRBACH005300_51.JPG","la famille","Thème"]
[641,"Guillard  Hélène","France","FRGUHÉ005097_51.JPG","Deux équilibres","Thème"]
[642,"Bruneton  Michel","France","FRBRMI005099_52.JPG","L'age","Thème"]
[643,"Zupunski  Anica","Serbie","MEANZU005003_52.JPG","Far away","Thème"]
[644,"Valkama  Kaija","Finlande","FIVAKA005342_54.JPG","Bicycle parking","Thème"]
[645,"Sargeant  Anne","France","FRSAAN005065_52.JPG","T’as du feu?","Thème"]
[646,"Vajaianu  Alexandre","Roumanie","ROVAAL004990_54.JPG","A LA PERIPHERIE DE LA VIE 2","Thème"]
[647,"Tevfik  Ileri","Chypre","CYTEIL002747_52.JPG","Teaching Walking","Thème"]
[648,"Ford  Roger","Royaume-Uni","GBFORO005236_54.JPG","Striding Out","Thème"]
[649,"Banq  Jean","France","FRBAJE004935_53.JPG","quartier st jacques","Thème"]
[650,"Schuetze  Horst","Allemagne","DESCHO005386_54.JPG","Rope Jumping","Thème"]
[651,"Cossé  Christophe","France","FRCOCH005350_51.JPG","le Lapin Agile","Thème"]
[652,"Ponsaerts  Eugène","Belgique","BEPOEU005244_52.JPG","Inde 2013 (10)","Thème"]
[653,"Berlier  Michèle","France","FRBEMI004829_53.JPG","la passerelle","Thème"]
[654,"Cividin  Dino","Belgique","BECIDI004752_54.JPG","That's me !","Thème"]
[655,"Xiaoguang  Zhao","Chine","CNXIZH004896_51.JPG","Old Tea House Master","Thème"]
[656,"Kerekes  Istvan","Hongrie","HUKEIS004861_52.JPG","Made in Harghita","Thème"]
[657,"Fung  Man Yu, Alex","Hong Kong","HKFUMA004988_53.JPG","Venice morning","Thème"]
[658,"Saleilles  Jean","France","FRSAJE005011_54.JPG","Nike dans les vaps","Thème"]
[659,"Johnston  Eion","Royaume-Uni","GBJOEI004756_53.JPG","Meat market Russia","Thème"]
[660,"Nemeroff  Ira","Etats Unis","USNEIR005352_52.JPG","Bruges 58","Thème"]
[661,"Zhou  Jianyong","Chine","CNZHJI005180_51.JPG","Before the match","Thème"]
[662,"Lei  Ming","Chine","CNLEMI005161_52.JPG","Leisure","Thème"]
[663,"Yi  Huang","Chine","CNYIHU004872_54.JPG","Have Fun","Thème"]
[664,"Barbier  Gerard","France","FRBAGE004790_52.JPG","Mannequin rouge","Thème"]
[665,"Yang  Liming","Chine","CNYALI005217_54.JPG","The travelling players","Thème"]
[666,"Synnevaag  Roald","Norvège","NOSYRO004946_52.JPG","Cafe Scandi","Thème"]
[667,"Huynh   Chuy Chay","Belgique","BEHUCH004931_51.JPG","Picnic","Thème"]
[668,"Lechanski  M.","Royaume-Uni","GBLEM.004934_54.JPG","Young Photographher","Thème"]
[669,"Châtelais  Catherine","France","FRCHCA005310_54.JPG","Square","Thème"]
[670,"Dufau  Françoise","France","FRDUFR004859_51.JPG","Etirements","Thème"]
[671,"Zihong  Li","Chine","CNZILI004877_53.JPG","Childish","Thème"]
[672,"Yang  Fu","Chine","CNYAFU005169_53.JPG","Return","Thème"]
[673,"Tam  Joseph","Australie","AUTAJO004800_54.JPG","Lets Go Girls","Thème"]
[674,"Coumbias  John","Afrique du Sud","ZACOJO004744_53.JPG","beautyful curves","Thème"]
[675,"Noguero Cazorla  Andreu","Espagne","ESNOAN005128_52.JPG","Tormenta en Cuba","Thème"]
[676,"Gilliot  Michel","Belgique","BEGIMI004774_51.JPG","Chienne de vie","Thème"]
[677,"Teo  Giap Chiu","Singapour","SGTEGI004966_53.JPG","Go To SingaporeTample","Thème"]
[678,"Magnier  Jocelyne","France","FRMAJO004826_54.JPG","tu me cherches","Thème"]
[679,"Chapon  Alexandra","France","FRCHAL004773_54.JPG","Jusqu'au bout","Thème"]
[680,"Martinet  Thierry","France","FRMATH004779_51.JPG","Au trot","Thème"]
[681,"Kolbrich  Robert","Autriche","ATKORO004972_54.JPG","Treffen","Thème"]
[682,"Chen  Junjie","Chine","CNCHJU005155_51.JPG","Absorbed","Thème"]
[683,"Di Tommaso  Angelo","France","FRDIAN004767_52.JPG","Life is joy 1","Thème"]
[684,"Swarte  Frans","Royaume-Uni","GBSWFR005025_54.JPG","esplanade","Thème"]
[685,"Kolbrich  Robert","Autriche","ATKORO004972_51.JPG","Diskussion","Thème"]
[686,"Csomortani  Istvan","Suède","SECSIS005326_54.JPG","Dali","Thème"]
[687,"André  Gertosio","France","FRANGE004806_51.JPG","Pizzeria","Thème"]
[688,"Hofmann  Klaus","Allemagne","DEHOKL005038_54.JPG","Langeweile","Thème"]
[689,"Li  Ming","Chine","CNLIMI005394_53.JPG","love umbrella","Thème"]
[690,"Bernardon  Claude","France","FRBECL004939_52.JPG","ENTREE DES ARTISTES","Thème"]
[691,"Kyndt  Daniel","Belgique","BEKYDA004776_52.JPG","Toegang","Thème"]
[692,"Zhao  Jinli","Chine","CNZHJI005172_53.JPG","Ordinary lanes","Thème"]
[693,"Luhman  Fred","Etats Unis","USLUFR004863_54.JPG","Hard Times In Gdansk","Thème"]
[694,"Bacle  Jean Claude","France","FRBAJE004750_54.JPG","Offrande","Thème"]
[695,"Jorge  François","France","FRJOFR004987_53.JPG","Mur","Thème"]
[696,"Gleeson  William","Irlande","IEGLWI004845_54.JPG","Somebodys Son","Thème"]
[697,"Pelissier  Marc","France","FRPEMA005392_52.JPG","Le cri","Thème"]
[698,"O'Hagan  David J.","Irlande","IEO'DA005273_53.JPG","New Londoner","Thème"]
[699,"Dumas  Jean-Louis","France","FRDUJE005062_51.JPG","Le joueur de vielle","Thème"]
[700,"Gleeson  William","Irlande","IEGLWI004845_53.JPG","Street Person","Thème"]
[701,"Paillé  Alain","France","FRPAAL004748_52.JPG","Sardane","Thème"]
[702,"Leverne   Jean Michel","France","FRLEJE004812_52.JPG","Réflexion 1","Thème"]
[703,"Mantykangas  Jarmo","Finlande","FIMAJA004954_53.JPG","Motorbike overfly","Thème"]
[704,"Statter  Paul","Royaume-Uni","GBSTPA005139_52.JPG","Secret Liaison","Thème"]
[705,"Vautrin  Inge","Etats Unis","USVAIN005031_51.JPG","Waiting for Owner","Thème"]
[706,"Dallavalle  Jean","France","FRDAJE004793_51.JPG","Face cachée","Thème"]
[707,"Wei  Fangru","Chine","CNWEFA005168_54.JPG","The monks of redwall","Thème"]
[708,"Noeth  Lothar","Allemagne","DENOLO005229_51.JPG","Frueher und heute","Thème"]
[709,"Kazepidis  Vasilis","Grèce","GRKAVA005295_53.JPG","musicians on the road 0978","Thème"]
[710,"Daley  Gregory","Etats Unis","USDAGR005032_54.JPG","Soweto Tavern","Thème"]
[711,"Potts  Gary","Etats Unis","USPOGA005349_51.JPG","Gone South","Thème"]
[712,"Lu  Ping","Chine","CNLUPI005199_51.JPG","Grain store","Thème"]
[713,"Guinot  Elisabeth","France","FRGUEL005083_53.JPG","Symétrie","Thème"]
[714,"Jia  Limei","Chine","CNJILI005215_54.JPG","Young man of riding motorcycle","Thème"]
[715,"Adriani  Maria","Indonésie","IDADMA005116_51.JPG","Biker in the Sunset","Thème"]
[716,"Tagliani  Roberto","Italie","ITTARO004970_53.JPG","Vote for president 2","Thème"]
[717,"Chan  H.W.","Hong Kong","HKCHH.005036_54.JPG","Rain day street 5","Thème"]
[718,"Pejakovic Peyo  Branko","Bosnie-Herzégovine","BAPEBR004941_53.JPG","Longing","Thème"]
[719,"Gilliot  Michel","Belgique","BEGIMI004774_52.JPG","Jeunes gilles","Thème"]
[720,"Bin  Li","Chine","CNBILI004874_54.JPG","Custom","Thème"]
[721,"Lambropoulou  Eva","Grèce","GRLAEV004910_53.JPG","TRAVELLING","Thème"]
[722,"Widawski  Raymond","Belgique","BEWIRA004804_51.JPG","Aide","Thème"]
[723,"Venning  Jeffrey","Australie","AUVEJE004840_54.JPG","Wrong Way","Thème"]
[724,"Fang  Zhenhong","Chine","CNFAZH005184_51.JPG","Harvest 01","Thème"]
[725,"Barthélémy  Joëlle","France","FRBAJO004856_54.JPG","Yellow bridge","Thème"]
[726,"Millin  Robert","Royaume-Uni","GBMIRO005346_52.JPG","Vegetable Seller","Thème"]
[727,"Xiaopin  Ma","Chine","CNXIMA004881_51.JPG","Black Girl","Thème"]
[728,"Dong  Ren","Chine","CNDORE005218_51.JPG","Landlady","Thème"]
[729,"Rousseau  Jean-René","France","FRROJE005059_53.JPG","parapluie rouge","Thème"]
[730,"Pejakovic Peyo  Branko","Bosnie-Herzégovine","BAPEBR004941_52.JPG","Just another","Thème"]
[731,"Bassett  David","Australie","AUBADA004785_54.JPG","Window shopper","Thème"]
[732,"Zhou  Jianyong","Chine","CNZHJI005180_54.JPG","Street","Thème"]
[733,"Lambropoulou  Eva","Grèce","GRLAEV004910_52.JPG","LIBERTY OR SLAVERY","Thème"]
[734,"Scazzola  Laurent","France","FRSCLA005066_54.JPG","Youki","Thème"]
[735,"Landon  Patrick","France","FRLAPA005064_53.JPG","Halte-fraîcheur","Thème"]
[736,"Hu  Weiguo","Chine","CNHUWE005159_52.JPG","Homeland","Thème"]
[737,"Xu  Ping","Chine","CNXUPI005179_54.JPG","Town flavor","Thème"]
[738,"Bernardon  Claude","France","FRBECL004939_53.JPG","MEAT MARKET","Thème"]
[739,"Goelff  Claude","Luxembourg","LUGOCL004847_51.JPG","Op der Schueberfouer","Thème"]
[740,"Lechanski  M.","Royaume-Uni","GBLEM.004934_51.JPG","City of London 01","Thème"]
[741,"O'Hagan  David J.","Irlande","IEO'DA005273_51.JPG","Before the Game, Dublin, 2016","Thème"]
[742,"Noeth  Lothar","Allemagne","DENOLO005229_52.JPG","Schulweg","Thème"]
[743,"Tam  Kam Chiu","Canada","CATAKA004989_53.JPG","In a hurry","Thème"]
[744,"Goelff  Claude","Luxembourg","LUGOCL004847_54.JPG","Domm gaangen","Thème"]
[745,"Wang  Li","Chine","CNWALI005213_54.JPG","Street artist","Thème"]
[746,"Li  Ming","Chine","CNLIMI005394_51.JPG","buddha field","Thème"]
[747,"Bassett  David","Australie","AUBADA004785_53.JPG","Varanasi streetlife","Thème"]
[748,"Roussillon  Claude","France","FRROCL004852_51.JPG","Aveiro","Thème"]
[749,"Dufau  Françoise","France","FRDUFR004859_53.JPG","Le bal musette","Thème"]
[750,"Dasuki  Elyana","Indonésie","IDDAEL005054_54.JPG","Waiting","Thème"]
[751,"Palfrader  Josef","Autriche","ATPAJO005340_52.JPG","Messerschleifer","Thème"]
[752,"Panajol  Véronique","France","FRPAVÉ004854_51.JPG","Aux aguets 2","Thème"]
[753,"Barthélémy  Joëlle","France","FRBAJO004856_52.JPG","Intention","Thème"]
[754,"Streitfelder  Theo","Autriche","ATSTTH004732_52.JPG","Emotionen","Thème"]
[755,"Legrand  Jean Luc","Belgique","BELEJE005309_53.JPG","Quartier juif 1","Thème"]
[756,"Wang  Bingcheng","Chine","CNWABI005177_52.JPG","Cleaner","Thème"]
[757,"Vasilev  Yuliy","Bulgarie","BGVAYU004978_52.JPG","Slaves of Time","Thème"]
[758,"Rongguang  Ye","Chine","CNROYE004891_52.JPG","Roadside Market","Thème"]
[759,"Valkama  Kaija","Finlande","FIVAKA005342_52.JPG","Boy and dog","Thème"]
[760,"Bernardon  Claude","France","FRBECL004939_51.JPG","BARBER SHOP","Thème"]
[761,"Bayssiere  Gerard","France","FRBAGE005365_54.JPG","La fête au village","Thème"]
[762,"Valkama  Kaija","Finlande","FIVAKA005342_53.JPG","Mud","Thème"]
[763,"Boutolleau   Monique","France","FRBOMO005105_52.JPG","Le retour de la raie","Thème"]
[764,"Sharples  Jan","Australie","AUSHJA005276_52.JPG","Jazz fan","Thème"]
[765,"Feng  Jiashun","Chine","CNFEJI005398_54.JPG","waiting","Thème"]
[766,"Suszkiewicz  Ole","Danemark","DKSUOL005051_52.JPG","Berlin House","Thème"]
[767,"Raoulas  Daniel","France","FRRADA003731_53.JPG","Colis volumineux","Thème"]
[768,"Aníbal Ulises  Ruiz","Argentine","ARANRU005145_51.JPG","Gitana","Thème"]
[769,"Springmann  Dr. Rafael","Israël","ILSPDR004739_51.JPG","Street scene","Thème"]
[770,"Zeng  Wei","Chine","CNZEWE005183_53.JPG","World in our eyes","Thème"]
[771,"Carrez  Patricia","France","FRCAPA004820_51.JPG","retour de boulangerie","Thème"]
[772,"Hutting  Jacky","Luxembourg","LUHUJA005384_54.JPG","ROUGE ET VERT","Thème"]
[773,"Charalambous  Constantinos","Chypre","CYCHCO005285_52.JPG","Japan by night","Thème"]
[774,"Vu Phuoc   Nguyen","Viet Nam","VNVUNG005376_52.JPG","Busy morning","Thème"]
[775,"Bacchiana  Claude","France","FRBACL004983_53.JPG","Rue Indienne","Thème"]
[776,"Fry  Martin","Royaume-Uni","GBFRMA005234_52.JPG","Ices in Edinburgh","Thème"]
[777,"Marin  Annik","France","FRMAAN005079_51.JPG","Jeu d'enfants","Thème"]
[778,"Zihong  Li","Chine","CNZILI004877_51.JPG","Sensible","Thème"]
[779,"Oransay   Fatma Selma","Turquie","TRFAOR005024_53.JPG","Trapped couple","Thème"]
[780,"Huang  Yi","Chine","CNHUYI005209_54.JPG","Passerby 04","Thème"]
[781,"Barbier  Gerard","France","FRBAGE004790_51.JPG","# je suis Hélène","Thème"]
[782,"Simon  Claude","Belgique","BESICL004763_52.JPG","Lost in the city 3","Thème"]
[783,"Statter  Paul","Royaume-Uni","GBSTPA005139_51.JPG","Reflecting","Thème"]
[784,"Amenta  Armand","France","FRAMAR004907_54.JPG","Les trois soeurs","Thème"]
[785,"Tagliani  Roberto","Italie","ITTARO004970_51.JPG","selfie","Thème"]
[786,"Cadène-Rostany  Alain","France","FRCAAL005021_54.JPG","Sur la place","Thème"]
[787,"Goelff  Claude","Luxembourg","LUGOCL004847_52.JPG","Harderkulm","Thème"]
[788,"Jossier  Jean","France","FRJOJE004778_54.JPG","Mauvaise rencontre","Thème"]
[789,"Ford  Angela","Royaume-Uni","GBFOAN005228_52.JPG","Hot Dog","Thème"]
[790,"Peer  Albert","Autriche","ATPEAL004957_54.JPG","suspekt","Thème"]
[791,"Nagy  Lajos","Roumanie","RONALA005144_53.JPG","Rainy day","Thème"]
[792,"Statter  Paul","Royaume-Uni","GBSTPA005139_54.JPG","Seen but not Heard","Thème"]
[793,"Adriani  Maria","Indonésie","IDADMA005116_52.JPG","Playing Bubble","Thème"]
[794,"Hyett  David","Royaume-Uni","GBHYDA005028_53.JPG","Victorian Misery","Thème"]
[795,"Boutolleau   Monique","France","FRBOMO005105_54.JPG","Ramages","Thème"]
[796,"Leverne   Jean Michel","France","FRLEJE004812_51.JPG","Réflexion 2","Thème"]
[797,"Grimfoot  Mats","Suède","SEGRMA005355_52.JPG","Entre","Thème"]
[798,"Cohen  Jean","France","FRCOJE005061_53.JPG","Passants","Thème"]
[799,"Lybaert   Daniel","Pays-Bas","NLLYDA005020_52.JPG","Jesse in Vlissingen","Thème"]
[800,"Springmann  Dr. Rafael","Israël","ILSPDR004739_52.JPG","The women in red","Thème"]
[801,"Zhao  Jinli","Chine","CNZHJI005172_54.JPG","Street violinst","Thème"]
[802,"Gilson  Guy","Belgique","BEGIGU005108_53.JPG","Reflets multiples","Thème"]
[803,"Brechtel  Bärbel","Allemagne","DEBRBÄ005254_54.JPG","An intense Talk","Thème"]
[804,"Tieqiang  Li","Chine","CNTILI004875_52.JPG","Broken Home","Thème"]
[805,"Springmann  Dr. Rafael","Israël","ILSPDR004739_54.JPG","Selfy in spoons","Thème"]
[806,"Tam  Kam Chiu","Canada","CATAKA004989_51.JPG","Brandenburg Gate","Thème"]
[807,"Wu  Xunwen","Chine","CNWUXU005182_51.JPG","Everyone is blind but me","Thème"]
[808,"Venna  Yrjö","Finlande","FIVEYR005124_54.JPG","Worker's Lookout","Thème"]
[809,"Cadène-Rostany  Alain","France","FRCAAL005021_51.JPG","Bulles de savon","Thème"]
[810,"Dong  Ren","Chine","CNDORE005218_54.JPG","Make living","Thème"]
[811,"Noguero Cazorla  Andreu","Espagne","ESNOAN005128_53.JPG","Tormenta en La Habana","Thème"]
[812,"Papadakis  Manolis","Grèce","GRPAMA005302_52.JPG","Bus","Thème"]
[813,"Xiaoqing  Zhang","Chine","CNXIZH004893_51.JPG","Share","Thème"]
[814,"Beyers  Neels","Afrique du Sud","ZABENE005131_52.JPG","Jakarandas in Robertson","Thème"]
[815,"Geinguenaud  Jean-René","France","FRGEJE004834_53.JPG","Pesage","Thème"]
[816,"Dasuki  Elyana","Indonésie","IDDAEL005054_51.JPG","Cleaner","Thème"]
[817,"Dupouy  Michel","France","FRDUMI005283_51.JPG","Bravade","Thème"]
[818,"Chan  H.W.","Hong Kong","HKCHH.005036_51.JPG","Rainy day 1 (Sarajevo)","Thème"]
[819,"Andrea  Merlak","Italie","ITANME005317_52.JPG","prima e dopo","Thème"]
[820,"Niron  Jean Michel","France","FRNIJE004825_51.JPG","miroir","Thème"]
[821,"Stos  Krzysztof","Pologne","PLSTKR005363_54.JPG","Street playground 2","Thème"]
[822,"Wang  Bingcheng","Chine","CNWABI005177_51.JPG","Beauty and labor","Thème"]
[823,"Mantykangas  Jarmo","Finlande","FIMAJA004954_51.JPG","Imatra self service","Thème"]
[824,"Hyvernaud  Marie","France","FRHYMA004933_52.JPG","Austérité","Thème"]
[825,"Larsson  Benny","Suède","SELABE005371_53.JPG","take cover","Thème"]
[826,"Bysack   Subrata","Inde","INBYSU005388_51.JPG","DANGEROUS PLAY","Thème"]
[827,"Rondel  Brigitte","France","FRROBR004792_53.JPG","Miroir d'eau","Thème"]
[828,"Niron  Jean Michel","France","FRNIJE004825_53.JPG","quai des brumes","Thème"]
[829,"Stokie  Michelle","Australie","AUSTMI002739_51.JPG","Just needs a little Love","Thème"]
[830,"Yang  Liming","Chine","CNYALI005217_51.JPG","Communication","Thème"]
[831,"Lee  Hengki","Indonésie","IDLEHE005383_52.JPG","Life","Thème"]
[832,"Selzer  Klaus-Peter","Allemagne","DESEKL005085_54.JPG","Playing on the Beach","Thème"]
[833,"Papadakis  Manolis","Grèce","GRPAMA005302_51.JPG","Alone on street","Thème"]
[834,"Sustrac  Bernard","France","FRSUBE005067_52.JPG","Nuit debout","Thème"]
[835,"Larsson  Benny","Suède","SELABE005371_52.JPG","a nice time","Thème"]
[836,"Van Calsteren  Louis","Belgique","BEVALO004783_51.JPG","Arrivée en ville","Thème"]
[837,"Wei  Fangru","Chine","CNWEFA005168_52.JPG","Queue","Thème"]
[838,"Lu  Ping","Chine","CNLUPI005199_52.JPG","Make living","Thème"]
[839,"Chan  Dany","Canada","CA CDA005298_54.JPG","Young Stilt Walkers","Thème"]
[840,"He  Xianzheng","Chine","CNHEXI005191_51.JPG","Buddhism","Thème"]
[841,"Boyle  Judy","Royaume-Uni","GBBOJU004759_54.JPG","just posing","Thème"]
[842,"Peters  Kenneth","Ecosse","GBSPEKE005242_52.JPG","St Pauls On Reflection","Thème"]
[843,"Wiltzius  Nicole","Luxembourg","LUWINI004743_53.JPG","the lesson","Thème"]
[844,"Yan  Jinsong","Chine","CNYAJI005204_53.JPG","Look around","Thème"]
[845,"Middleton  Sarah","Royaume-Uni","GBMISA005353_54.JPG","Barcelona Downpour","Thème"]
[846,"Lehtonen  Kauko","Finlande","FILEKA005248_52.JPG","Hannu the Fisherman","Thème"]
[847,"Wattiez   Axelle","Belgique","BEWAAX004929_52.JPG","Jour de lessive","Thème"]
[848,"Dasuki  Elyana","Indonésie","IDDAEL005054_52.JPG","Take A Rest","Thème"]
[849,"Nowak  Gérard","France","FRNOGÉ005095_52.JPG","La pause","Thème"]
[850,"Lu  Yigang","Chine","CNLUYI005181_52.JPG","Playing chess","Thème"]
[851,"Schuetze  Horst","Allemagne","DESCHO005386_51.JPG","Gasse in Lipari","Thème"]
[852,"Heriot  James","Australie","AUHEJA005109_54.JPG","Waiting for Business","Thème"]
[853,"Millin  Robert","Royaume-Uni","GBMIRO005346_51.JPG","Fetching Daily Water","Thème"]
[854,"Burlon  Georges","France","FRBUGE004924_51.JPG","Duo Vénitien","Thème"]
[855,"Schuetze  Horst","Allemagne","DESCHO005386_53.JPG","La Canchanchara","Thème"]
[856,"Yao  Zhenhai","Chine","CNYAZH005170_52.JPG","Go to city","Thème"]
[857,"Vachon  Roland","France","FRVARO004771_54.JPG","Question","Thème"]
[858,"Wong  Danny Yen Sin","Malaisie","MYWODA004789_51.JPG","Hamer Dance","Thème"]
[859,"Sustrac  Bernard","France","FRSUBE005067_54.JPG","Derrière la grille","Thème"]
[860,"Burr  Judy","Etats Unis","USBUJU005090_51.JPG","Ghent Subway Beggar","Thème"]
[861,"Kuang  Ya","Chine","CNKUYA005160_52.JPG","Pedler","Thème"]
[862,"He  Xianzheng","Chine","CNHEXI005191_54.JPG","Vicissitudes","Thème"]
[863,"Metlitzky  Ivor","Australie","AUMEIV003738_53.JPG","The-Accident","Thème"]
[864,"Le Fustec  Sébastien","France","FRLESÉ004830_53.JPG","complices","Thème"]
[865,"Jianqiang  Chen","Chine","CNJIJI004848_52.JPG","Light Stream","Thème"]
[866,"Strand  Karl","Australie","AUSTKA005367_52.JPG","Life Rushes By","Thème"]
[867,"Viswanathan  Ashok","Inde","INVIAS001783_54.JPG","photo shoot","Thème"]
[868,"Héritier  Jacques","France","FRHÉJA004860_53.JPG","Trompe Oeil","Thème"]
[869,"Frenkel  Denis","France","FRFRDE004822_52.JPG","contraste","Thème"]
[870,"Duval  Monique","France","FRDUMO004958_51.JPG","Arcades de Bologne","Thème"]
[871,"Swannick  John","Royaume-Uni","GBSWJO004832_53.JPG","Fancy a swig","Thème"]
[872,"Long  Hua","Chine","CNLOHU005186_54.JPG","The man who is drinking tea","Thème"]
[873,"Bordes  André","France","FRBOAN004742_53.JPG","Garçon d'honneur","Thème"]
[874,"Wan  Yi","Chine","CNWAYI005017_54.JPG","Sacrifice Series 77","Thème"]
[875,"Yilan  Song","Chine","CNYISO004882_54.JPG","Childhood","Thème"]
[876,"Mctighe  Elena","Etats Unis","USMCEL004761_52.JPG","Maasai Baby","Thème"]
[877,"Pelissier  Marc","France","FRPEMA005392_54.JPG","Convergence","Thème"]
[878,"Beaurain  Alain","France","FRBEAL004843_54.JPG","Stationnement","Thème"]
[879,"Xiang  Lu","Chine","CNXILU004878_51.JPG","Display Window","Thème"]
[880,"Yang  Fu","Chine","CNYAFU005169_51.JPG","Dialogue","Thème"]
[881,"Bailly  Michel","France","FRBAMI004818_54.JPG","rouge et blanc","Thème"]
[882,"Statter  Paul","Royaume-Uni","GBSTPA005139_53.JPG","Storming Through","Thème"]
[883,"Vu Phuoc   Nguyen","Viet Nam","VNVUNG005376_54.JPG","Ha Noi Street","Thème"]
[884,"Xu  Ping","Chine","CNXUPI005179_51.JPG","After the closing time","Thème"]
[885,"Travaillé  Claude","France","FRTRCL005089_51.JPG","I'm biking on the rain","Thème"]
[886,"Yilan  Song","Chine","CNYISO004882_53.JPG","Play Mud","Thème"]
[887,"Van Eenoo  Michele","France","FRVAMI004799_54.JPG","Seul dans la ville","Thème"]
[888,"Ma  Xiaopin","Chine","CNMAXI005164_54.JPG","One meter sunshine","Thème"]
[889,"Thies  Judith","Australie","AUTHJU005329_52.JPG","Loneliness","Thème"]
[890,"Barrilliot  Christian","France","FRBACH005300_52.JPG","Copenhage","Thème"]
[891,"Feng  Jiashun","Chine","CNFEJI005398_52.JPG","check information","Thème"]
[892,"Wang  Jianguo","Chine","CNWAJI005210_53.JPG","Street artist","Thème"]
[893,"Frenkel  Denis","France","FRFRDE004822_53.JPG","noeud urbain","Thème"]
[894,"Lu  Ping","Chine","CNLUPI005199_53.JPG","Melocholy","Thème"]
[895,"Adriani  Maria","Indonésie","IDADMA005116_53.JPG","Flying","Thème"]
[896,"Viswanathan  Ashok","Inde","INVIAS001783_51.JPG","carribean carnival","Thème"]
[897,"Pires Dias  José Manuel","France","FRPIJO004798_53.JPG","Prendre des nouvelles","Thème"]
[898,"Chatelais  Jean-Louis","France","FRCHJE005313_53.JPG","In red and black","Thème"]
[899,"Limberg  Huib","Pays-Bas","NLLIHU005337_54.JPG","Rendez-vous","Thème"]
[900,"Boulanger  Jean","France","FRBOJE005060_52.JPG","sous les arcades 1M","Thème"]
[901,"Panajol  Véronique","France","FRPAVÉ004854_54.JPG","Ball","Thème"]
[902,"Chapon  Alexandra","France","FRCHAL004773_51.JPG","A.D.N","Thème"]
[903,"Shicong  Xiao","Chine","CNSHXI004885_52.JPG","Childhood","Thème"]
[904,"Bayssiere  Gerard","France","FRBAGE005365_52.JPG","Découverte","Thème"]
[905,"Van Balken  Marcel","Pays-Bas","NLVAMA005046_52.JPG","Streetview","Thème"]
[906,"Beyers  Neels","Afrique du Sud","ZABENE005131_54.JPG","Rainbow dance by San (3)","Thème"]
[907,"Duong  Bobta","France","FRDUBO005093_53.JPG","Skateboard entrainement","Thème"]
[908,"Kuang  Ya","Chine","CNKUYA005160_51.JPG","Milan night","Thème"]
[909,"Synnevaag  Roald","Norvège","NOSYRO004946_51.JPG","On a bench in Copenhagen","Thème"]
[910,"Terreau  Jean-Michel","France","FRTEJE004850_51.JPG","Attente du client","Thème"]
[911,"Chow  Tsun Ip Patrick","Hong Kong","HKCHTS005338_53.JPG","Fountain","Thème"]
[912,"Bacle  Jean Claude","France","FRBAJE004750_53.JPG","Painter at Paris","Thème"]
[913,"Feehan  Sean","Irlande","IEFESE005356_54.JPG","Rumours of Spring","Thème"]
[914,"Medhurst  Derek","Royaume-Uni","GBMEDE004865_54.JPG","Winter contrast, Dresden","Thème"]
[915,"Medhurst  Derek","Royaume-Uni","GBMEDE004865_51.JPG","Footsore","Thème"]
[916,"Gaboriau  Christine","France","FRGACH004791_51.JPG","Bel été","Thème"]
[917,"Danis  Janos","Hongrie","HUDAJA005115_52.JPG","In Ljght and in Shadow","Thème"]
[918,"Bruneton  Michel","France","FRBRMI005099_51.JPG","Le sauteur","Thème"]
[919,"Ling  Yongxiong","Australie","AULIYO004965_53.JPG","Road","Thème"]
[920,"Hioe  Jason","Indonésie","IDHIJA004930_54.JPG","work in progress","Thème"]
[921,"Banq  Jean","France","FRBAJE004935_52.JPG","patriotisme","Thème"]
[922,"Barthélémy  Joëlle","France","FRBAJO004856_51.JPG","Confidences","Thème"]
[923,"Wei  Fangru","Chine","CNWEFA005168_53.JPG","Revolving incense ...","Thème"]
[924,"Swarte  Frans","Royaume-Uni","GBSWFR005025_53.JPG","class room teacher","Thème"]
[925,"Blondel  Christian","France","FRBLCH004786_51.JPG","Face à faceE 1","Thème"]
[926,"Zhiyuan  Cai","Chine","CNZHCA004868_52.JPG","Cycling","Thème"]
[927,"Lander  Igor","Ukraine","UALAIG005026_52.JPG","Nobody cares...","Thème"]
[928,"Vajaianu  Alexandre","Roumanie","ROVAAL004990_51.JPG","LA TOUCHE FINALE","Thème"]
[929,"Bacchiana  Claude","France","FRBACL004983_51.JPG","Chien de garde","Thème"]
[930,"Cheuk  Shu","Etats Unis","USCHSH004994_52.JPG","Fun On Easter Island","Thème"]
[931,"Bian  Zihai","Chine","CNBIZI005189_54.JPG","Little girl","Thème"]
[932,"Boulanger  Jean","France","FRBOJE005060_51.JPG","Portrait 3","Thème"]
[933,"Pelissier  Marc","France","FRPEMA005392_53.JPG","Reflet de Nice","Thème"]
[934,"Causse  Eric","France","FRCAER004805_53.JPG","Les 4 vieilles","Thème"]
[935,"Hyett  David","Royaume-Uni","GBHYDA005028_54.JPG","Private Conversation","Thème"]
[936,"Marin  Annik","France","FRMAAN005079_52.JPG","Poussière dans l'oeil","Thème"]
[937,"Fry  Martin","Royaume-Uni","GBFRMA005234_54.JPG","My City","Thème"]
[938,"King  Francis","Canada","CAKIFR005245_51.JPG","Big Time","Thème"]
[939,"Nowak  Gérard","France","FRNOGÉ005095_54.JPG","Rue chinoise","Thème"]
[940,"Abussaud  Firas","Arabie saoudite","SAABFI004981_51.JPG","a Boy","Thème"]
[941,"Kohar  Vincent","Indonésie","IDKOVI004754_53.JPG","Your HEAD is Here","Thème"]
[942,"Schweden  Wolfgang","Allemagne","DESCWO004842_52.JPG","On Street 2 C","Thème"]
[943,"Middleton  Sarah","Royaume-Uni","GBMISA005353_51.JPG","Bustling Market","Thème"]
[944,"Adriani  Maria","Indonésie","IDADMA005116_54.JPG","Meaa","Thème"]
[945,"De Jong  Franke","Pays-Bas","NLDEFR005290_54.JPG","Reading the music","Thème"]
[946,"Gilson  Guy","Belgique","BEGIGU005108_54.JPG","Sous les arcades","Thème"]
[947,"Xiang  Lu","Chine","CNXILU004878_53.JPG","Little Believer","Thème"]
[948,"Lybaert   Daniel","Pays-Bas","NLLYDA005020_53.JPG","Brugse waterplas","Thème"]
[949,"Kolbrich  Robert","Autriche","ATKORO004972_52.JPG","no fire","Thème"]
[950,"Strehlke  Klaus","Allemagne","DESTKL005292_53.JPG","Parade-5542","Thème"]
[951,"Negredo  Julian","Espagne","ESNEJU005043_53.JPG","thirty one","Thème"]
[952,"Wang  Li","Chine","CNWALI005213_52.JPG","In the street","Thème"]
[953,"Tam  Joseph","Australie","AUTAJO004800_53.JPG","Spanish Guitar","Thème"]
[954,"Gilson  Guy","Belgique","BEGIGU005108_51.JPG","L'homme pressé","Thème"]
[955,"Van Eenoo  Michele","France","FRVAMI004799_53.JPG","Le marionnettiste","Thème"]
[956,"André  Gertosio","France","FRANGE004806_53.JPG","Vapeur","Thème"]
[957,"Van Calsteren  Louis","Belgique","BEVALO004783_53.JPG","Sous l'ombrière","Thème"]
[958,"Bergo  Arne","Norvège","NOBEAR005380_51.JPG","Lake Market Inle","Thème"]
[959,"Li  Ming","Chine","CNLIMI005394_52.JPG","give a pose","Thème"]
[960,"Legrand  Jean Luc","Belgique","BELEJE005309_54.JPG","Clint.be","Thème"]
[961,"Hao  Jincheng","Chine","CNHAJI005190_54.JPG","Pecfect angle","Thème"]
[962,"Frenkel  Denis","France","FRFRDE004822_51.JPG","artiste de rue","Thème"]
[963,"Nagy  Lajos","Roumanie","RONALA005144_54.JPG","Rainy street life","Thème"]
[964,"Glandon  Laurent","France","FRGLLA004809_54.JPG","Montmartre 57952","Thème"]
[965,"Boulanger  Jean","France","FRBOJE005060_54.JPG","Tax Free","Thème"]
[966,"Huynh   Chuy Chay","Belgique","BEHUCH004931_52.JPG","Visite inattendue","Thème"]
[967,"Zhou  Jianyong","Chine","CNZHJI005180_53.JPG","Chant of the old woman","Thème"]
[968,"Vajaianu  Alexandre","Roumanie","ROVAAL004990_52.JPG","LE RACKETTEUR","Thème"]
[969,"Paillé  Alain","France","FRPAAL004748_53.JPG","L'Aquila-2016","Thème"]
[970,"Maslin  David M.","Royaume-Uni","GBMADA004781_51.JPG","Meeting Place","Thème"]
[971,"Rau  Frank","Allemagne","DERAFR005092_53.JPG","Luebeck 2","Thème"]
[972,"Kwok  Man Wo","Hong Kong","HKKWMA005033_53.JPG","GIVE YOU A KISS C","Thème"]
[973,"Potts  Gary","Etats Unis","USPOGA005349_54.JPG","Segway Survivor","Thème"]
[974,"Goelff  Claude","Luxembourg","LUGOCL004847_53.JPG","Boxing","Thème"]
[975,"Wan  Yi","Chine","CNWAYI005017_52.JPG","Sacrifice Series112","Thème"]
[976,"Aníbal Ulises  Ruiz","Argentine","ARANRU005145_54.JPG","Charango","Thème"]
[977,"Keene  Paul","Royaume-Uni","GBKEPA005358_52.JPG","Murdered - Belfast","Thème"]
[978,"Cividin  Dino","Belgique","BECIDI004752_52.JPG","Et un selfie, un !","Thème"]
[979,"Hyett  David","Royaume-Uni","GBHYDA005028_52.JPG","Why Us?","Thème"]
[980,"Guillard  Hélène","France","FRGUHÉ005097_52.JPG","Intimité","Thème"]
[981,"Bayssiere  Gerard","France","FRBAGE005365_53.JPG","Jour de marché","Thème"]
[982,"Yonghong  Jin","Chine","CNYOJI004873_54.JPG","Playmate","Thème"]
[983,"Jia  Limei","Chine","CNJILI005215_52.JPG","Entrust","Thème"]
[984,"Taborda  Joao","Portugal","PTTAJO005256_51.JPG","The Colors of My Flag","Thème"]
[985,"Frances  Georges","France","FRFRGE004906_51.JPG","Le cireur de chaussures","Thème"]
[986,"Xiaoqing  Zhang","Chine","CNXIZH004893_54.JPG","Leap","Thème"]
[987,"Kazepidis  Vasilis","Grèce","GRKAVA005295_51.JPG","Beneath the gaze","Thème"]
[988,"Bian  Zihai","Chine","CNBIZI005189_51.JPG","Banquet","Thème"]
[989,"Linstrument  Claude","France","FRLICL004758_53.JPG","J de lessive","Thème"]
[990,"Luhman  Fred","Etats Unis","USLUFR004863_51.JPG","Danish Couple","Thème"]
[991,"Zhang  Tianming","Chine","CNZHTI005171_53.JPG","Old to livehood","Thème"]
[992,"Rudy  Tair","Indonésie","IDRUTA005022_52.JPG","shared toilet","Thème"]
[993,"Dencausse  Bernard","France","FRDEBE005080_51.JPG","Charlie","Thème"]
[994,"Gibbins  David","Royaume-Uni","GBGIDA005220_54.JPG","Passing By","Thème"]
[995,"Adijuwono  Slamet","Indonésie","IDADSL005152_51.JPG","bikers 2","Thème"]
[996,"Lee  Hengki","Indonésie","IDLEHE005383_53.JPG","Party of Five","Thème"]
[997,"Negredo  Julian","Espagne","ESNEJU005043_52.JPG","maypole","Thème"]
[998,"Palma  Enrico","Italie","ITPAEN005111_54.JPG","Painting my home","Thème"]
[999,"Hioe  Jason","Indonésie","IDHIJA004930_51.JPG","cleaning the windows","Thème"]
[1000,"Pillik  Manfred","Autriche","ATPIMA004926_53.JPG","Sonnenanbeter","Thème"]
[1001,"Charalambous  Constantinos","Chypre","CYCHCO005285_53.JPG","Open air market","Thème"]
[1002,"Kwan  Phillip","Canada","CAKWPH005235_54.JPG","Morning Market","Thème"]
[1003,"Luhman  Fred","Etats Unis","USLUFR004863_52.JPG","Kinsale","Thème"]
[1004,"Jinyan  Yang","Chine","CNJIYA004888_53.JPG","Alley","Thème"]
[1005,"Huynh   Chuy Chay","Belgique","BEHUCH004931_54.JPG","Oh my GOD !","Thème"]
[1006,"Kwan  Phillip","Canada","CAKWPH005235_51.JPG","Storey Teller","Thème"]
[1007,"Rinaldy  Rafly","Indonésie","IDRIRA004925_51.JPG","Morning Glory","Thème"]
[1008,"Ulmann  Denis","France","FRULDE004824_51.JPG","bimbos","Thème"]
[1009,"Yi  Huang","Chine","CNYIHU004872_51.JPG","Lonely Performer","Thème"]
[1010,"Mead  Barry","Royaume-Uni","GBMEBA005056_54.JPG","VAMPIRES","Thème"]
[1011,"Xia  Tiangong","Chine","CNXITI005211_51.JPG","Elder in night market","Thème"]
[1012,"Stokie  Michelle","Australie","AUSTMI002739_52.JPG","Mt Macedon Cross","Thème"]
[1013,"Chatelais  Jean-Louis","France","FRCHJE005313_54.JPG","Intrigués","Thème"]
[1014,"Lebrun  Jean-Louis","France","FRLEJE005098_53.JPG","Roue libre","Thème"]
[1015,"Niron  Jean Michel","France","FRNIJE004825_54.JPG","sainte cecile","Thème"]
[1016,"Tran  Tuan","Etats Unis","USTRTU004961_53.JPG","Early Line at the Bank-Puno","Thème"]
[1017,"Suszkiewicz  Ole","Danemark","DKSUOL005051_51.JPG","Bad Boy 3","Thème"]
[1018,"Limberg  Huib","Pays-Bas","NLLIHU005337_52.JPG","Seems to be seen there....!","Thème"]
[1019,"Dervieux Catena  Annick","France","FRDEAN001769_54.JPG","Blue square","Thème"]
[1020,"Wattiez   Axelle","Belgique","BEWAAX004929_53.JPG","Palette neigeuse au Rialto","Thème"]
[1021,"Leverne   Jean Michel","France","FRLEJE004812_54.JPG","Réflexion 4","Thème"]
[1022,"Gibbins  David","Royaume-Uni","GBGIDA005220_51.JPG","Neurer Fokus","Thème"]
[1023,"Yao  Zhenhai","Chine","CNYAZH005170_51.JPG","Festival","Thème"]
[1024,"Chen  Junjie","Chine","CNCHJU005155_52.JPG","Brothers","Thème"]
[1025,"Bassett  David","Australie","AUBADA004785_52.JPG","Dream catcher","Thème"]
[1026,"Xiaoguang  Zhao","Chine","CNXIZH004896_53.JPG","Fellow","Thème"]
[1027,"Venna  Yrjö","Finlande","FIVEYR005124_51.JPG","Bride in Street","Thème"]
[1028,"Dumangin  Jacky","France","FRDUJA002740_51.JPG","Défilé","Thème"]
[1029,"Cambon  Michel","France","FRCAMI005221_54.JPG","Peur dans la nuit","Thème"]
[1030,"Jossier  Jean","France","FRJOJE004778_53.JPG","La pétanque","Thème"]
[1031,"Nemeroff  Ira","Etats Unis","USNEIR005352_54.JPG","Venice Washday","Thème"]
[1032,"Chow  Tsun Ip Patrick","Hong Kong","HKCHTS005338_54.JPG","Rainy Night","Thème"]
[1033,"Deniau  Noel","France","FRDENO004802_51.JPG","Danse","Thème"]
[1034,"Verelst  Greta","Belgique","BEVEGR004945_51.JPG","Attendant le bus","Thème"]
[1035,"Landon  Patrick","France","FRLAPA005064_52.JPG","Drôle de Tram","Thème"]
[1036,"Salice  Francesca","Italie","ITSAFR005086_52.JPG","LADAKH PHANTOMS","Thème"]
[1037,"Kwok  Man Wo","Hong Kong","HKKWMA005033_52.JPG","CHEF ON STREET C","Thème"]
[1038,"Dufau  Françoise","France","FRDUFR004859_52.JPG","Top secret","Thème"]
[1039,"Kwok  Man Wo","Hong Kong","HKKWMA005033_54.JPG","GRAFFITI","Thème"]
[1040,"Palfrader  Josef","Autriche","ATPAJO005340_54.JPG","Scherenschleifer","Thème"]
[1041,"Metlitzky  Ivor","Australie","AUMEIV003738_52.JPG","Our-Family","Thème"]
[1042,"Magnier  Jocelyne","France","FRMAJO004826_53.JPG","le compte est bon","Thème"]
[1043,"Sacksteder   Hubert","France","FRSAHU004919_54.JPG","Trottoirs de Manille 4","Thème"]
[1044,"Saleilles  Jean","France","FRSAJE005011_51.JPG","Errance en bleu","Thème"]
[1045,"Zeng  Wei","Chine","CNZEWE005183_51.JPG","Family","Thème"]
[1046,"Keene  Paul","Royaume-Uni","GBKEPA005358_54.JPG","Not while we're on duty George","Thème"]
[1047,"Pejakovic Peyo  Branko","Bosnie-Herzégovine","BAPEBR004941_51.JPG","Dillema","Thème"]
[1048,"Mctighe  Elena","Etats Unis","USMCEL004761_51.JPG","Bridal Couple in Bamboo Forrest","Thème"]
[1049,"Panajol  Véronique","France","FRPAVÉ004854_53.JPG","Tangage","Thème"]
[1050,"Tieqiang  Li","Chine","CNTILI004875_54.JPG","Take Shower","Thème"]
[1051,"Causse  Eric","France","FRCAER004805_52.JPG","Lecture","Thème"]
[1052,"Pelissier  Marc","France","FRPEMA005392_51.JPG","Color warp","Thème"]
[1053,"Strehlke  Klaus","Allemagne","DESTKL005292_51.JPG","Cafe-030","Thème"]
[1054,"Teo  Giap Chiu","Singapour","SGTEGI004966_54.JPG","Lama Truning The Wheel","Thème"]
[1055,"Fekete  Tamas","Hongrie","HUFETA004772_54.JPG","Gay pride","Thème"]
[1056,"Yiliang  Yang","Chine","CNYIYA004889_51.JPG","View of Back","Thème"]
[1057,"Mctighe  Elena","Etats Unis","USMCEL004761_54.JPG","Street Artist","Thème"]
[1058,"Dupouy  Michel","France","FRDUMI005283_54.JPG","Partie d'échecs","Thème"]
[1059,"Bysack   Subrata","Inde","INBYSU005388_53.JPG","ROADSIDE GLAMOUR","Thème"]
[1060,"Chow  Tsun Ip Patrick","Hong Kong","HKCHTS005338_52.JPG","City Romance","Thème"]
[1061,"Narsiskus  Tedy","Indonésie","IDNATE004936_52.JPG","climbing slippery","Thème"]
[1062,"Guillard  Hélène","France","FRGUHÉ005097_54.JPG","STreet art à Asilah","Thème"]
[1063,"Peters  Kenneth","Ecosse","GBSPEKE005242_53.JPG","Street of Tall Buildings","Thème"]
[1064,"Héritier  Jacques","France","FRHÉJA004860_52.JPG","Ombrello Rosso","Thème"]
[1065,"De  Granville  Jean-Jacques","Guyane Française","GFDEJE004780_51.JPG","Gamin à la trottinette","Thème"]
[1066,"Frenkel  Denis","France","FRFRDE004822_54.JPG","solitude","Thème"]
[1067,"Daley  Gregory","Etats Unis","USDAGR005032_53.JPG","Cafe du Monde","Thème"]
[1068,"He  Xianzheng","Chine","CNHEXI005191_52.JPG","Morning exercise","Thème"]
[1069,"Chen  Lanfeng","Chine","CNCHLA005174_52.JPG","Chinese dragon","Thème"]
[1070,"Zihong  Li","Chine","CNZILI004877_54.JPG","Raining Day","Thème"]
[1071,"Chan  Dany","Canada","CA CDA005298_51.JPG","Attentive Audience","Thème"]
[1072,"Duong  Bobta","France","FRDUBO005093_54.JPG","Vendeuse ambulante","Thème"]
[1073,"Chen  Chunpin","Chine","CNCHCH005154_54.JPG","Playing mahjong","Thème"]
[1074,"Strehlke  Klaus","Allemagne","DESTKL005292_52.JPG","Crossroads-0995","Thème"]
[1075,"Springmann  Dr. Rafael","Israël","ILSPDR004739_53.JPG","Multiplied entities","Thème"]
[1076,"Jourdain  Roger","France","FRJORO004901_51.JPG","Raining","Thème"]
[1077,"Vigneron  Dominique","France","FRVIDO005078_53.JPG","NANCY","Thème"]
[1078,"Banerjee  Sounak","Inde","INBASO005332_52.JPG","Veiled Lady Street Seller","Thème"]
[1079,"Yushan  Li","Chine","CNYULI004876_54.JPG","The Rain Flood the Streets","Thème"]
[1080,"Grimfoot  Mats","Suède","SEGRMA005355_53.JPG","Reaching out","Thème"]
[1081,"Roberto Andres  Geria","Argentine","ARROGE005297_54.JPG","Rondando la Plaza Mayor","Thème"]
[1082,"Peer  Albert","Autriche","ATPEAL004957_51.JPG","fantastic","Thème"]
[1083,"Beyers  Neels","Afrique du Sud","ZABENE005131_53.JPG","Lokasie","Thème"]
[1084,"Li  Ming","Chine","CNLIMI005394_54.JPG","skidding 1","Thème"]
[1085,"Schweden  Wolfgang","Allemagne","DESCWO004842_53.JPG","We are here 1 BW","Thème"]
[1086,"Medhurst  Derek","Royaume-Uni","GBMEDE004865_53.JPG","The Empress's new clothes","Thème"]
[1087,"Di Tommaso  Angelo","France","FRDIAN004767_51.JPG","En velo","Thème"]
[1088,"Bailly  Michel","France","FRBAMI004818_51.JPG","dernieres nouvelles","Thème"]
[1089,"Rizzato  Pierluigi","Italie","ITRIPI005225_51.JPG","Mao","Thème"]
[1090,"Wojcik  Grzegorz","Pologne","PLWOGR005058_53.JPG","bird of Anarchy","Thème"]
[1091,"Verelst  Greta","Belgique","BEVEGR004945_52.JPG","Big Smile","Thème"]
[1092,"Roussillon  Claude","France","FRROCL004852_53.JPG","Chefchaouen2","Thème"]
[1093,"Boyle  Judy","Royaume-Uni","GBBOJU004759_52.JPG","travellers and horses","Thème"]
[1094,"Hutting  Jacky","Luxembourg","LUHUJA005384_51.JPG","PORTEUR","Thème"]
[1095,"O'Hagan  David J.","Irlande","IEO'DA005273_54.JPG","Tottenham Court Road, London","Thème"]
[1096,"Keel  David","Royaume-Uni","GBKEDA005347_53.JPG","Street tribute","Thème"]
[1097,"Shicong  Xiao","Chine","CNSHXI004885_51.JPG","Pilgrimage Route","Thème"]
[1098,"Nagy  Lajos","Roumanie","RONALA005144_52.JPG","Modern times","Thème"]
[1099,"Tagliani  Roberto","Italie","ITTARO004970_52.JPG","Denmpassar market","Thème"]
[1100,"Cossé  Christophe","France","FRCOCH005350_52.JPG","Porte d' Italie","Thème"]
[1101,"Glandon  Laurent","France","FRGLLA004809_53.JPG","Montmartre 57926","Thème"]
[1102,"Li  Yue","Chine","CNLIYU005198_53.JPG","Heaven","Thème"]
[1103,"Yao  Zhenhai","Chine","CNYAZH005170_53.JPG","Go to mother's home","Thème"]
[1104,"Viguier  Gérard","France","FRVIGÉ004835_54.JPG","Zombie day","Thème"]
[1105,"Tjandra  Bernard Susantija","Indonésie","IDTJBE004999_53.JPG","Fishing ?","Thème"]
[1106,"Duval  Roland","France","FRDURO004955_51.JPG","Amis bayonais","Thème"]
[1107,"Papadakis  Manolis","Grèce","GRPAMA005302_54.JPG","Morning light 2","Thème"]
[1108,"Keel  David","Royaume-Uni","GBKEDA005347_51.JPG","Cleaning the skyscraper","Thème"]
[1109,"Long  Hua","Chine","CNLOHU005186_52.JPG","Street girl","Thème"]
[1110,"Jia  Limei","Chine","CNJILI005215_53.JPG","Three generations","Thème"]
[1111,"Wu  Xunwen","Chine","CNWUXU005182_54.JPG","Workers and walkers","Thème"]
[1112,"Yana  Hu","Chine","CNYAHU004871_51.JPG","Eye to Eye","Thème"]
[1113,"Gaboriau  Christine","France","FRGACH004791_52.JPG","J'en veux aussi","Thème"]
[1114,"Wang  Li","Chine","CNWALI005213_53.JPG","Journey with snow and wind","Thème"]
[1115,"Noeth  Lothar","Allemagne","DENOLO005229_53.JPG","Strassenimbis","Thème"]
[1116,"De Jong  Franke","Pays-Bas","NLDEFR005290_52.JPG","Squarewalk","Thème"]
[1117,"Zhang  Zhiwu","Chine","CNZHZH005188_53.JPG","Hundred family banquet","Thème"]
[1118,"Yushan  Li","Chine","CNYULI004876_53.JPG","Heroic Posture","Thème"]
[1119,"Vanneuville  Jacques","France","FRVAJA004741_52.JPG","La Ruelle","Thème"]
[1120,"Paillé  Alain","France","FRPAAL004748_54.JPG","Aqua Alta Venise","Thème"]
[1121,"Narsiskus  Tedy","Indonésie","IDNATE004936_53.JPG","morning bicycle","Thème"]
[1122,"Rau  Frank","Allemagne","DERAFR005092_52.JPG","Auf der Karlsbruecke","Thème"]
[1123,"Ford  Roger","Royaume-Uni","GBFORO005236_52.JPG","Rejected by Batman","Thème"]
[1124,"Debiève  Albert","France","FRDEAL004912_54.JPG","Gay pride 2012","Thème"]
[1125,"Scazzola  Laurent","France","FRSCLA005066_51.JPG","en terrasse","Thème"]
[1126,"Landon  Patrick","France","FRLAPA005064_54.JPG","Silver Men","Thème"]
[1127,"Cohen  Jean","France","FRCOJE005061_51.JPG","Pink lady","Thème"]
[1128,"Li  Jianping","Chine","CNLIJI005176_52.JPG","Side street","Thème"]
[1129,"Lei  Xi","Chine","CNLEXI005219_51.JPG","Crotch","Thème"]
[1130,"Chennubhotla  Yashodhar","Inde","INCHYA004816_51.JPG","is there any rule","Thème"]
[1131,"Dervieux Catena  Annick","France","FRDEAN001769_51.JPG","Fermeture hebdomadaire","Thème"]
[1132,"Pili  Garcia Pitarch","Espagne","ESPIGA005359_53.JPG","Taxi Bike","Thème"]
[1133,"Wang  Shibo","Chine","CNWASH005167_54.JPG","The mother of mountains","Thème"]
[1134,"Burr  Judy","Etats Unis","USBUJU005090_54.JPG","Walking in Tallinn","Thème"]
[1135,"Yilan  Song","Chine","CNYISO004882_51.JPG","Upside Down","Thème"]
[1136,"Bordes-Pagès  Gilles","France","FRBOGI005378_51.JPG","Hong-Kong jogging","Thème"]
[1137,"Chennubhotla  Yashodhar","Inde","INCHYA004816_52.JPG","legs and no legs","Thème"]
[1138,"Oransay   Fatma Selma","Turquie","TRFAOR005024_54.JPG","Tealand","Thème"]
[1139,"Dorioz  Annie","France","FRDOAN004769_51.JPG","Comme on s'aime","Thème"]
[1140,"Hofmann  Klaus","Allemagne","DEHOKL005038_51.JPG","Gesraech unter Maennern","Thème"]
[1141,"Danis  Janos","Hongrie","HUDAJA005115_51.JPG","Coming","Thème"]
[1142,"Huo  Qiang","Chine","CNHUQI005194_51.JPG","Debate","Thème"]
[1143,"Di Tommaso  Angelo","France","FRDIAN004767_54.JPG","Sous la pluie a Luxembourg","Thème"]
[1144,"Hyllseth  Torhild","Norvège","NOHYTO004760_51.JPG","Gamingtime","Thème"]
[1145,"Bouthier  Brigitte","France","FRBOBR004940_52.JPG","Maitresse tatouée","Thème"]
[1146,"Zeng  Wei","Chine","CNZEWE005183_54.JPG","Sisters","Thème"]
[1147,"Beaurain  Alain","France","FRBEAL004843_51.JPG","Froidure","Thème"]
[1148,"Van Balken  Marcel","Pays-Bas","NLVAMA005046_53.JPG","Cotton candy","Thème"]
[1149,"Thomas  Bernadette","France","FRTHBE005134_54.JPG","Le tagueur","Thème"]
[1150,"Kwan  Phillip","Canada","CAKWPH005235_53.JPG","Fish Merchant","Thème"]
[1151,"Bruno  Madeddu","Italie","ITBRMA005387_53.JPG","Visioni urbane","Thème"]
[1152,"Mayer  Abel","France","FRMAAB004770_54.JPG","Terrain de Jeu","Thème"]
[1153,"Zupunski  Anica","Serbie","MEANZU005003_51.JPG","Air Brush","Thème"]
[1154,"Burlon  Georges","France","FRBUGE004924_53.JPG","La dame Blanche","Thème"]
[1155,"Venna  Yrjö","Finlande","FIVEYR005124_52.JPG","Loteria","Thème"]
[1156,"Desheng  Xu","Chine","CNDEXU004887_51.JPG","Tradition","Thème"]
[1157,"Swannick  John","Royaume-Uni","GBSWJO004832_54.JPG","Red City","Thème"]
[1158,"Whitby  John","Royaume-Uni","GBWHJO005076_54.JPG","Shelter","Thème"]
[1159,"Domange  Fernand","France","FRDOFE004951_53.JPG","Florence à Collioure","Thème"]
[1160,"Xiaoguang  Zhao","Chine","CNXIZH004896_54.JPG","Playmate","Thème"]
[1161,"Kohar  Vincent","Indonésie","IDKOVI004754_52.JPG","Sidewalk Running","Thème"]
[1162,"Luhman  Fred","Etats Unis","USLUFR004863_53.JPG","Rainy Night In The City","Thème"]
[1163,"Le Fustec  Sébastien","France","FRLESÉ004830_52.JPG","belphegor","Thème"]
[1164,"Cheuk  Shu","Etats Unis","USCHSH004994_51.JPG","Exchange","Thème"]
[1165,"Choliz  Santiago","Espagne","ESCHSA005146_54.JPG","tiredness 3","Thème"]
[1166,"Fang  Zhenhong","Chine","CNFAZH005184_53.JPG","Harvest 03","Thème"]
[1167,"Chen  Junjie","Chine","CNCHJU005155_54.JPG","Trading","Thème"]
[1168,"Chen  Chunpin","Chine","CNCHCH005154_52.JPG","Childhood in alley","Thème"]
[1169,"Danne  Johansen","Danemark","DKDAJO005231_53.JPG","Making shadows","Thème"]
[1170,"Stos  Krzysztof","Pologne","PLSTKR005363_53.JPG","Poor person","Thème"]
[1171,"Liu  Sui","Chine","CNLISU005162_54.JPG","Street painter","Thème"]
[1172,"Logeais  Dominique","France","FRLODO004794_51.JPG","Alignements","Thème"]
[1173,"Miao  Yong","Chine","CNMIYO005201_51.JPG","Alley in the rain","Thème"]
[1174,"Lei  Xi","Chine","CNLEXI005219_54.JPG","Yi lady","Thème"]
[1175,"Burlon  Georges","France","FRBUGE004924_54.JPG","Profil Vénitien","Thème"]
[1176,"Li  Yue","Chine","CNLIYU005198_54.JPG","Buddha world","Thème"]
[1177,"Kyndt  Daniel","Belgique","BEKYDA004776_51.JPG","Speelse honden","Thème"]
[1178,"Bushe  Catherine","Irlande","IEBUCA005362_52.JPG","City cycle","Thème"]
[1179,"Wang  Jianguo","Chine","CNWAJI005210_51.JPG","Hold","Thème"]
[1180,"Duong  Bobta","France","FRDUBO005093_51.JPG","Rue de Fort de France","Thème"]
[1181,"Zhong  Huan","Chine","CNZHHU004996_54.JPG","Street images","Thème"]
[1182,"Lehmann  François","France","FRLEFR004914_52.JPG","Lavandière","Thème"]
[1183,"Tagliani  Roberto","Italie","ITTARO004970_54.JPG","Vote for president 3","Thème"]
[1184,"Tam  Kam Chiu","Canada","CATAKA004989_54.JPG","Open restaurant","Thème"]
[1185,"Kohar  Vincent","Indonésie","IDKOVI004754_51.JPG","Washing Skin","Thème"]
[1186,"Guillard  Hélène","France","FRGUHÉ005097_53.JPG","Jeux à Langa","Thème"]
[1187,"Amenta  Armand","France","FRAMAR004907_52.JPG","Ghost","Thème"]
[1188,"Coumbias  John","Afrique du Sud","ZACOJO004744_51.JPG","raining morning","Thème"]
[1189,"Ermiao  Su","Chine","CNERSU004883_52.JPG","Through the Time","Thème"]
[1190,"Medhurst  Derek","Royaume-Uni","GBMEDE004865_52.JPG","Summer walk","Thème"]
[1191,"Becker  Werner","Allemagne","DEBEWE005339_53.JPG","Take A Walk","Thème"]
[1192,"Dervieux Catena  Annick","France","FRDEAN001769_52.JPG","Cinétique","Thème"]
[1193,"Jianxun  Wu","Chine","CNJIWU004884_52.JPG","Barbershop on a Street Corner","Thème"]
[1194,"Andrea  Merlak","Italie","ITANME005317_54.JPG","chic??","Thème"]
[1195,"Zhao  Jinli","Chine","CNZHJI005172_52.JPG","Noon","Thème"]
[1196,"Pauly  Jean","France","FRPAJE004765_53.JPG","Pichenette","Thème"]
[1197,"Gleeson  William","Irlande","IEGLWI004845_51.JPG","Invisable","Thème"]
[1198,"Bertocci  Vinicio","France","FRBEVI004803_52.JPG","Rues de Spaccanapoli 2","Thème"]
[1199,"Chan  H.W.","Hong Kong","HKCHH.005036_53.JPG","Raincoat 2","Thème"]
[1200,"Vu Phuoc   Nguyen","Viet Nam","VNVUNG005376_53.JPG","Busy morning 2","Thème"]
[1201,"Larsson  Benny","Suède","SELABE005371_51.JPG","king of dance","Thème"]
[1202,"Mctighe  Elena","Etats Unis","USMCEL004761_53.JPG","SA Town","Thème"]
[1203,"Rudy  Tair","Indonésie","IDRUTA005022_53.JPG","Sleeping soundly","Thème"]
[1204,"Viswanathan  Ashok","Inde","INVIAS001783_53.JPG","reflection","Thème"]
[1205,"Xiang  Lu","Chine","CNXILU004878_54.JPG","Take a Train","Thème"]
[1206,"Xiaoqing  Chen","Chine","CNXICH004869_54.JPG","Say Goodbye","Thème"]
[1207,"Rondel  Brigitte","France","FRROBR004792_51.JPG","Barber shop","Thème"]
[1208,"Maslin  David M.","Royaume-Uni","GBMADA004781_54.JPG","Street Cleaner","Thème"]
[1209,"Dupouy  Michel","France","FRDUMI005283_53.JPG","Impassible","Thème"]
[1210,"Rousseau  Jean-René","France","FRROJE005059_52.JPG","un voeu","Thème"]
[1211,"Mantykangas  Jarmo","Finlande","FIMAJA004954_54.JPG","Past apple orchard","Thème"]
[1212,"Widawski  Raymond","Belgique","BEWIRA004804_52.JPG","L'homme de Denver","Thème"]
[1213,"Schweden  Wolfgang","Allemagne","DESCWO004842_51.JPG","Express Yourself No One","Thème"]
[1214,"Brechtel  Bärbel","Allemagne","DEBRBÄ005254_52.JPG","At Times Square","Thème"]
[1215,"Tran  Tuan","Etats Unis","USTRTU004961_54.JPG","Had Good Sales","Thème"]
[1216,"Tran  Tuan","Etats Unis","USTRTU004961_52.JPG","Busstop on Rainy Day -Cusco","Thème"]
[1217,"Potts  Gary","Etats Unis","USPOGA005349_53.JPG","Peace and Farewell","Thème"]
[1218,"Panajol  Véronique","France","FRPAVÉ004854_52.JPG","Baby doll 3","Thème"]
[1219,"Paillé  Alain","France","FRPAAL004748_51.JPG","Service compris","Thème"]
[1220,"Comunale  Brittany","Etats Unis","USCOBR005237_53.JPG","Dutch Crossing","Thème"]
[1221,"Barbareau   Dominique","France","FRBADO004813_52.JPG","Rencontre","Thème"]
[1222,"Bruneton  Michel","France","FRBRMI005099_54.JPG","Seule","Thème"]
[1223,"Jianqiang  Chen","Chine","CNJIJI004848_54.JPG","Way of A Pilgrim","Thème"]
[1224,"Viguier  Gérard","France","FRVIGÉ004835_53.JPG","Marché","Thème"]
[1225,"Vasilev  Yuliy","Bulgarie","BGVAYU004978_51.JPG","Music for Deaf","Thème"]
[1226,"Jia  Limei","Chine","CNJILI005215_51.JPG","Attract","Thème"]
[1227,"Venning  Jeffrey","Australie","AUVEJE004840_52.JPG","Rainbow Terrier","Thème"]
[1228,"Andrea  Merlak","Italie","ITANME005317_53.JPG","tra spazzatura e realta'","Thème"]
[1229,"Wan  Yi","Chine","CNWAYI005017_51.JPG","Color bubbles 1","Thème"]
[1230,"Palma  Enrico","Italie","ITPAEN005111_52.JPG","Writer at work","Thème"]
[1231,"Sharples  Jan","Australie","AUSHJA005276_53.JPG","River Living","Thème"]
[1232,"Bacchiana  Claude","France","FRBACL004983_54.JPG","Les touristes","Thème"]
[1233,"Zhang  Zhiwu","Chine","CNZHZH005188_52.JPG","Memory","Thème"]
[1234,"Zihong  Li","Chine","CNZILI004877_52.JPG","Get Onboard","Thème"]
[1235,"Tieqiang  Li","Chine","CNTILI004875_53.JPG","Share","Thème"]
[1236,"Bin  Li","Chine","CNBILI004874_51.JPG","Spiderman","Thème"]
[1237,"Salice  Francesca","Italie","ITSAFR005086_54.JPG","COFFEE SHOP","Thème"]
[1238,"Jinyan  Yang","Chine","CNJIYA004888_51.JPG","Curiosity","Thème"]
[1239,"Jianqiang  Chen","Chine","CNJIJI004848_51.JPG","Come and Go","Thème"]
[1240,"Sustrac  Bernard","France","FRSUBE005067_51.JPG","Chef d Orchestre","Thème"]
[1241,"Dallavalle  Jean","France","FRDAJE004793_54.JPG","Selfie music","Thème"]
[1242,"Debiève  Albert","France","FRDEAL004912_53.JPG","Gay pride 2011","Thème"]
[1243,"Sacksteder   Hubert","France","FRSAHU004919_52.JPG","Trottoirs de Manille 2","Thème"]
[1244,"Berlier  Michèle","France","FRBEMI004829_51.JPG","encombrements de paris","Thème"]
[1245,"Bai  Shuzhen","Chine","CNBASH005207_51.JPG","Blessing","Thème"]
[1246,"Li  Yue","Chine","CNLIYU005198_52.JPG","Before sailing","Thème"]
[1247,"Bian  Zihai","Chine","CNBIZI005189_53.JPG","Gate","Thème"]
[1248,"Boytell  Kerry","Australie","AUBOKE005070_52.JPG","Homeless","Thème"]
[1249,"Philippon  André","France","FRPHAN005052_53.JPG","selfie","Thème"]
[1250,"Pillik  Manfred","Autriche","ATPIMA004926_52.JPG","Blick zurueck","Thème"]
[1251,"Saez  Luis","Argentine","ARSALU005077_53.JPG","Limpiavidrios","Thème"]
[1252,"Tiarasanti  Galuh","Indonésie","IDTIGA004993_52.JPG","One morning of a street corner","Thème"]
[1253,"Kazepidis  Vasilis","Grèce","GRKAVA005295_52.JPG","Hungry child","Thème"]
[1254,"Tiarasanti  Galuh","Indonésie","IDTIGA004993_53.JPG","Portrait of an old woman","Thème"]
[1255,"Xiang  Lu","Chine","CNXILU004878_52.JPG","Crowded Train","Thème"]
[1256,"Jianxun  Wu","Chine","CNJIWU004884_51.JPG","Jump","Thème"]
[1257,"Boyle  Judy","Royaume-Uni","GBBOJU004759_53.JPG","the line up","Thème"]
[1258,"Yi  Huang","Chine","CNYIHU004872_53.JPG","Life of Passion","Thème"]
[1259,"Paillé  Jean-Claude","France","FRPAJE005364_54.JPG","Quand tombe le masque","Thème"]
[1260,"Rau  Frank","Allemagne","DERAFR005092_51.JPG","Marktplatz Siena","Thème"]
[1261,"Albrecht  Urs","Suisse","CHALUR005041_53.JPG","Selfportrait2016","Thème"]
[1262,"Tjandra  Bernard Susantija","Indonésie","IDTJBE004999_52.JPG","Beach cleaner","Thème"]
[1263,"Philippon  André","France","FRPHAN005052_54.JPG","vitesse","Thème"]
[1264,"Vanneuville  Jacques","France","FRVAJA004741_54.JPG","Feu Rouge","Thème"]
[1265,"Huo  Qiang","Chine","CNHUQI005194_53.JPG","Sadhu","Thème"]
[1266,"Suszkiewicz  Ole","Danemark","DKSUOL005051_54.JPG","On Way to Nowhere","Thème"]
[1267,"Wojcik  Grzegorz","Pologne","PLWOGR005058_51.JPG","Canoeists","Thème"]
[1268,"Sacksteder   Hubert","France","FRSAHU004919_51.JPG","Trottoirs de Manille 1","Thème"]
[1269,"Van Calsteren  Louis","Belgique","BEVALO004783_54.JPG","Tagueur","Thème"]
[1270,"Pantazis  Chris","Grèce","GRPACH005330_54.JPG","Child with accordion","Thème"]
[1271,"Cambornac  Michel","France","FRCAMI004828_54.JPG","mimetisme","Thème"]
[1272,"Hofmann  Klaus","Allemagne","DEHOKL005038_52.JPG","Auslagen","Thème"]
[1273,"Comunale  Brittany","Etats Unis","USCOBR005237_52.JPG","Pushkinskaya","Thème"]
[1274,"Duval  Monique","France","FRDUMO004958_54.JPG","Troubadours","Thème"]
[1275,"Zhong  Huan","Chine","CNZHHU004996_53.JPG","Street vendor","Thème"]
[1276,"Xiaolian   Zhang","Chine","CNXIZH004892_52.JPG","Drinking","Thème"]
[1277,"Huo  Qiang","Chine","CNHUQI005194_52.JPG","Old tea house","Thème"]
[1278,"Ulmann  Denis","France","FRULDE004824_52.JPG","naples","Thème"]
[1279,"Vautrin  Inge","Etats Unis","USVAIN005031_54.JPG","Lost in Thought","Thème"]
[1280,"Rongguang  Ye","Chine","CNROYE004891_54.JPG","Candle Light","Thème"]
[1281,"Hao  Jincheng","Chine","CNHAJI005190_53.JPG","Passion","Thème"]
[1282,"Causse  Eric","France","FRCAER004805_51.JPG","Dans la rue","Thème"]
[1283,"Sharples  Jan","Australie","AUSHJA005276_54.JPG","Stepping out","Thème"]
[1284,"Dencausse  Bernard","France","FRDEBE005080_54.JPG","Ménage","Thème"]
[1285,"Jong  Sioe Fung","Indonésie","IDJOSI005126_53.JPG","Vesak Day","Thème"]
[1286,"Héritier  Jacques","France","FRHÉJA004860_54.JPG","En Vitesse","Thème"]
[1287,"Becker  Werner","Allemagne","DEBEWE005339_52.JPG","Sale","Thème"]
[1288,"Dasuki  Elyana","Indonésie","IDDAEL005054_53.JPG","me and my cat","Thème"]
[1289,"Bassett  David","Australie","AUBADA004785_51.JPG","A quiet smoke","Thème"]
[1290,"Lindqvist  Leena-Maija","Finlande","FILILE005275_52.JPG","Men in the street","Thème"]
[1291,"Kolbrich  Robert","Autriche","ATKORO004972_53.JPG","Rauchpause","Thème"]
[1292,"Wong  Danny Yen Sin","Malaisie","MYWODA004789_54.JPG","Maasai Boys","Thème"]
[1293,"Fekete  Tamas","Hongrie","HUFETA004772_52.JPG","Monks","Thème"]
[1294,"Zhiyuan  Cai","Chine","CNZHCA004868_54.JPG","Dance Freely","Thème"]
[1295,"Andrea  Merlak","Italie","ITANME005317_51.JPG","fulmine","Thème"]
[1296,"Marin  Annik","France","FRMAAN005079_53.JPG","Tôt le matin","Thème"]
[1297,"Yana  Hu","Chine","CNYAHU004871_52.JPG","Joyful Time","Thème"]
[1298,"André  Gertosio","France","FRANGE004806_54.JPG","Bleu et rouge","Thème"]
[1299,"Chen  Lanfeng","Chine","CNCHLA005174_51.JPG","Beg alms","Thème"]
[1300,"Geinguenaud  Jean-René","France","FRGEJE004834_51.JPG","Accordéon","Thème"]
[1301,"Bai  Shuzhen","Chine","CNBASH005207_52.JPG","Children in liangshan","Thème"]
[1302,"Kruger  Willem","Afrique du Sud","ZAKRWI005316_52.JPG","Men at work","Thème"]
[1303,"Strehlke  Klaus","Allemagne","DESTKL005292_54.JPG","Parknot-003","Thème"]
[1304,"Teo  Giap Chiu","Singapour","SGTEGI004966_52.JPG","Go To Seragoon Tample","Thème"]
[1305,"Zhang  Zhiwu","Chine","CNZHZH005188_51.JPG","Fire dragon play ball","Thème"]
[1306,"Chow  Tsun Ip Patrick","Hong Kong","HKCHTS005338_51.JPG","After School","Thème"]
[1307,"Fung  Man Yu, Alex","Hong Kong","HKFUMA004988_54.JPG","Worried","Thème"]
[1308,"Bayssiere  Gerard","France","FRBAGE005365_51.JPG","Brume et reflets","Thème"]
[1309,"Pantazis  Chris","Grèce","GRPACH005330_51.JPG","At bazaar 13","Thème"]
[1310,"Bernardon  Claude","France","FRBECL004939_54.JPG","REFLETS","Thème"]
[1311,"Hioe  Jason","Indonésie","IDHIJA004930_53.JPG","walking alone","Thème"]
[1312,"Kohar  Vincent","Indonésie","IDKOVI004754_54.JPG","Under The Rain","Thème"]
[1313,"Bushe  Catherine","Irlande","IEBUCA005362_53.JPG","Urban stroll","Thème"]
[1314,"Paillé  Jean-Claude","France","FRPAJE005364_53.JPG","Las piernas","Thème"]
[1315,"Wong  Danny Yen Sin","Malaisie","MYWODA004789_52.JPG","Jump Over","Thème"]
[1316,"Heriot  James","Australie","AUHEJA005109_52.JPG","Fixing his Load","Thème"]
[1317,"Kruger  Willem","Afrique du Sud","ZAKRWI005316_53.JPG","Shadow walk","Thème"]
[1318,"Comunale  Brittany","Etats Unis","USCOBR005237_51.JPG","Santorini Music","Thème"]
[1319,"Wiltzius  Nicole","Luxembourg","LUWINI004743_51.JPG","a man and a woman","Thème"]
[1320,"Yonghong  Jin","Chine","CNYOJI004873_52.JPG","Return","Thème"]
[1321,"Csomortani  Istvan","Suède","SECSIS005326_52.JPG","Kunming","Thème"]
[1322,"Alibrahim  Ahmed","Arabie saoudite","SAALAH005149_54.JPG","In rain","Thème"]
[1323,"Li  Fang","Chine","CNLIFA005185_51.JPG","Baby and father","Thème"]
[1324,"Vigneron  Dominique","France","FRVIDO005078_52.JPG","HARAJUKU GIRLS 1","Thème"]
[1325,"Barbier  Gerard","France","FRBAGE004790_53.JPG","Phone break","Thème"]
[1326,"Wu  Xunwen","Chine","CNWUXU005182_53.JPG","Living","Thème"]
[1327,"Bruneton  Michel","France","FRBRMI005099_53.JPG","Danseurs sur Seine","Thème"]
[1328,"Hutting  Jacky","Luxembourg","LUHUJA005384_53.JPG","SONATE DE BACH","Thème"]
[1329,"Gibbins  David","Royaume-Uni","GBGIDA005220_53.JPG","Seperate Lives","Thème"]
[1330,"Hans  Florence","France","FRHAFL004851_52.JPG","Sunset","Thème"]
[1331,"Wei  Jiandong","Chine","CNWEJI005178_52.JPG","Hale and hearty","Thème"]
[1332,"Hao  Jincheng","Chine","CNHAJI005190_51.JPG","Choose","Thème"]
[1333,"Vasilev  Yuliy","Bulgarie","BGVAYU004978_54.JPG","Wrong Way","Thème"]
[1334,"Wei  Jiandong","Chine","CNWEJI005178_53.JPG","The temptation of delicacy","Thème"]
[1335,"Wattiez   Axelle","Belgique","BEWAAX004929_51.JPG","Averse à Marrakech","Thème"]
[1336,"Li  Fang","Chine","CNLIFA005185_54.JPG","Waiting","Thème"]
[1337,"Shicong  Xiao","Chine","CNSHXI004885_54.JPG","Barbershop on the Street","Thème"]
[1338,"Mantykangas  Jarmo","Finlande","FIMAJA004954_52.JPG","Motorbike landing","Thème"]
[1339,"Negredo  Julian","Espagne","ESNEJU005043_51.JPG","street","Thème"]
[1340,"Duval  Monique","France","FRDUMO004958_52.JPG","Femmes péruviennes","Thème"]
[1341,"Bertocci  Vinicio","France","FRBEVI004803_54.JPG","Rues de Spaccanapoli 4","Thème"]
[1342,"Bounine  Jean-Paul","France","FRBOJE004740_53.JPG","Temps de chien","Thème"]
[1343,"Ponsaerts  Eugène","Belgique","BEPOEU005244_54.JPG","MARKET 3S","Thème"]
[1344,"Vigneron  Dominique","France","FRVIDO005078_51.JPG","GO BY BIKE","Thème"]
[1345,"Selzer  Klaus-Peter","Allemagne","DESEKL005085_52.JPG","Berlin","Thème"]
[1346,"Jossier  Jean","France","FRJOJE004778_52.JPG","Douce nuit","Thème"]
[1347,"Magnier  Jocelyne","France","FRMAJO004826_52.JPG","couleurs","Thème"]
[1348,"Hyvernaud  Marie","France","FRHYMA004933_51.JPG","A contre sens","Thème"]
[1349,"Boyle  Judy","Royaume-Uni","GBBOJU004759_51.JPG","street kids","Thème"]
[1350,"Xiaoqing  Chen","Chine","CNXICH004869_51.JPG","Resting on His Cyclo","Thème"]
[1351,"Morel  Jean-Marie","France","FRMOJE004913_54.JPG","Regards","Thème"]
[1352,"Brechtel  Bärbel","Allemagne","DEBRBÄ005254_51.JPG","Someone is comming!","Thème"]
[1353,"Bin  Li","Chine","CNBILI004874_52.JPG","New Look","Thème"]
[1354,"Shicong  Xiao","Chine","CNSHXI004885_53.JPG","Holi Festival","Thème"]
[1355,"Plovie  Bjorn","Belgique","BEPLBJ004971_52.JPG","Music in the street","Thème"]
[1356,"Li  Fang","Chine","CNLIFA005185_53.JPG","Madagascar carter","Thème"]
[1357,"Sahut  Michel","France","FRSAMI004853_52.JPG","Dimanche","Thème"]
[1358,"Lehtonen  Kauko","Finlande","FILEKA005248_51.JPG","At the Busstop","Thème"]
[1359,"Magot  Laurent","France","FRMALA005127_52.JPG","Lyon après le 13 Novembre","Thème"]
[1360,"Xiaopin  Ma","Chine","CNXIMA004881_53.JPG","Docker","Thème"]
[1361,"Nowak  Gérard","France","FRNOGÉ005095_53.JPG","Le coq","Thème"]
[1362,"Vautrin  Inge","Etats Unis","USVAIN005031_52.JPG","Alone","Thème"]
[1363,"Yilan  Song","Chine","CNYISO004882_52.JPG","Guiding Light","Thème"]
[1364,"Hyett  David","Royaume-Uni","GBHYDA005028_51.JPG","Victorian Street","Thème"]
[1365,"Herbillon  Christian","Belgique","BEHECH005112_51.JPG","buren 1","Thème"]
[1366,"Bordes  André","France","FRBOAN004742_51.JPG","Lutte finale","Thème"]
[1367,"Ford  Angela","Royaume-Uni","GBFOAN005228_51.JPG","Behind You","Thème"]
[1368,"Cohen  Jean","France","FRCOJE005061_52.JPG","Noces d’eau","Thème"]
[1369,"Jossier  Jean","France","FRJOJE004778_51.JPG","Rencontre","Thème"]
[1370,"Gibbins  David","Royaume-Uni","GBGIDA005220_52.JPG","East Side Student","Thème"]
[1371,"Zhou  Shengli","Chine","CNZHSH005173_53.JPG","Time","Thème"]
[1372,"Fung  Man Yu, Alex","Hong Kong","HKFUMA004988_51.JPG","On our way","Thème"]
[1373,"Yan  Zhang","Chine","CNYAZH004894_52.JPG","Lifeful Children","Thème"]
[1374,"Bordes  André","France","FRBOAN004742_52.JPG","La glace","Thème"]
[1375,"Saez  Luis","Argentine","ARSALU005077_54.JPG","Solo Yo","Thème"]
[1376,"Debiève  Albert","France","FRDEAL004912_52.JPG","Gay pride 2010","Thème"]
[1377,"Zupunski  Anica","Serbie","MEANZU005003_53.JPG","Grain tank","Thème"]
[1378,"Choliz  Santiago","Espagne","ESCHSA005146_52.JPG","paella in the street 4","Thème"]
[1379,"Dencausse  Bernard","France","FRDEBE005080_53.JPG","La cubaine","Thème"]
[1380,"Palma  Enrico","Italie","ITPAEN005111_53.JPG","Brooms seller","Thème"]
[1381,"Legrand  Jean Luc","Belgique","BELEJE005309_52.JPG","Modes et manières d'aujourd'hui","Thème"]
[1382,"Tiarasanti  Galuh","Indonésie","IDTIGA004993_51.JPG","Different generations","Thème"]
[1383,"Le Fustec  Sébastien","France","FRLESÉ004830_51.JPG","attention chien marrant","Thème"]
[1384,"De  Granville  Jean-Jacques","Guyane Française","GFDEJE004780_53.JPG","Passage couvert","Thème"]
[1385,"Yan  Zhang","Chine","CNYAZH004894_51.JPG","Piggish Children","Thème"]
[1386,"Ling  Yongxiong","Australie","AULIYO004965_54.JPG","Going home 15","Thème"]
[1387,"Chatelais  Jean-Louis","France","FRCHJE005313_52.JPG","Apprentissage 2","Thème"]
[1388,"Viguier  Mireille","France","FRVIMI004911_51.JPG","Fin de course","Thème"]
[1389,"Ermiao  Su","Chine","CNERSU004883_51.JPG","Longing","Thème"]
[1390,"Ruffoli   Luca","Italie","ITRULU005308_52.JPG","Warms the heart","Thème"]
[1391,"Lehmann  François","France","FRLEFR004914_53.JPG","Pastorale","Thème"]
[1392,"Stos  Krzysztof","Pologne","PLSTKR005363_51.JPG","Child","Thème"]
[1393,"Zhou  Shengli","Chine","CNZHSH005173_52.JPG","The streets of livelihood","Thème"]
[1394,"Swannick  John","Royaume-Uni","GBSWJO004832_52.JPG","Charlie","Thème"]
[1395,"Bordes-Pagès  Gilles","France","FRBOGI005378_53.JPG","Ryogoku","Thème"]
[1396,"Lei  Ming","Chine","CNLEMI005161_54.JPG","Peddler","Thème"]
[1397,"Pejakovic Peyo  Branko","Bosnie-Herzégovine","BAPEBR004941_54.JPG","Swiftness","Thème"]
[1398,"Limberg  Huib","Pays-Bas","NLLIHU005337_51.JPG","Eveningwalk in Almere","Thème"]
[1399,"Dervieux Catena  Annick","France","FRDEAN001769_53.JPG","Sieste à Palerme","Thème"]
[1400,"Yi  Huang","Chine","CNYIHU004872_52.JPG","Street Corner","Thème"]
[1401,"Wattiez   Axelle","Belgique","BEWAAX004929_54.JPG","San Giorgio","Thème"]
[1402,"Nowak  Gérard","France","FRNOGÉ005095_51.JPG","Cartes chinoises","Thème"]
[1403,"Trigalou  Marc","France","FRTRMA005008_53.JPG","Selfie jump","Thème"]
[1404,"Hans  Florence","France","FRHAFL004851_51.JPG","Pause","Thème"]
[1405,"Sahut  Michel","France","FRSAMI004853_53.JPG","Elévation","Thème"]
[1406,"Muñoz  Javier","Espagne","ESMUJA005286_52.JPG","Very clean","Thème"]
[1407,"Raoulas  Daniel","France","FRRADA003731_52.JPG","Stationnement interdit","Thème"]
[1408,"Bleyen  Livinus","Belgique","BEBLLI005325_52.JPG","Harley Fans","Thème"]